{"text_format":"3","workbook":"xlsx","n_sheets":14,"sheets":["Home","NVR","IPC","DVR","HDC","PTZ","Wi-Fi IP","PoE Switches","PoE Accessories","Accessories","מערכת SHOB ","VMS Hardware","Maitainance file","Sheet1"],"not_rendered":{"images":212,"macros":1,"external_links":2,"defined_names":17},"read":"whole","date_system":"1900"}

{"sheet":"Home","index":0,"n_rows":20,"n_cols":2,"rows_kept":20,"merged":[[0,1,1,11],[11,3,11,11],[12,3,12,11],[13,3,13,11],[15,3,15,7],[17,1,17,11],[18,1,18,11],[19,1,19,11]]}
{"$rows_empty":18}
[null,"Provision-ISR team at your service"]
[null,"pricelist terms- \nEx-Works Shenzhen / FCA Den Hoorn NL\nprices are in USD\nMinimum order- 5,000$"]

{"sheet":"NVR","index":1,"n_rows":31,"n_cols":25,"rows_kept":31,"merged":[[0,3,0,24],[1,3,1,11],[1,12,1,24],[2,2,2,24]]}
[null,null,"NVR"]
[]
[]
[{"$f":"IF(AND(IFERROR(SEARCH(\"None PoE\",l0&5,1),0)>=1,IFERROR(SEARCH(\"PoE\",l0&5,1),0)>=1,IFERROR(SEARCH(\"RAID\",l0&5,1),0)>=1,IFERROR(SEARCH(\"Face\",l0&5,1),0)>=1,IFERROR(SEARCH(\"DDA Analytic\",l0&5,1),0)>=1,IFERROR(SEARCH(\"FishEye\",l0&5,1),0)>=1),1,0)","v":0},null,"Model","Free","Description","No. of Channels","Max Resolution","Bandwidth","FPS","Video Outputs","HDD","Audio Input","Audio Output","Dry Contact","Special Features","NDAA","China Price","Old Price","China Availability","Netherlands Price","Old Price","Netherland Availability","Unit Per Carton","MOQ","Remarks"]
[1,null,"NVR5-4100X+(MM)",null,"H.265 Stand Alone NVR, 4CH  5MP at 25fps. MM case",4,"5MP","32Mbps/\n32Mbps","25fps 5MP ","HDMI, VGA","1 of 6TB max","Based on IPC Only","Based on IPC Only","Based on IPC Only","None PoE \nDDA Analytic\nLPR","No",{"v":33,"d":"$33.00"},null,"EOL",{"$f":"SUM((Q5*1.095)+((Q5*1.07)*Sheet1!C$5))","v":{"v":36.135,"d":"$36.14"}},null,"Yes",5,5,"EOL, replaced by \nNVR5-4100XN(MM)"]
[null,null,"NVR5-4100XN(MM)",null,"H.265 Stand Alone NDAA NVR, 4CH  5MP at 25fps. MM case",4,"5MP","40Mbps/\n64Mbps","25fps 5MP ","HDMI, VGA","1 of 6TB Max","Based on IPC Only","Based on IPC Only","Based on IPC Only","None PoE \nDDA Analytic\nLPR","Yes",{"v":28,"d":"$28.00"},null,"Yes",{"$f":"SUM((Q6*1.095)+((Q6*1.07)*Sheet1!C$5))","v":{"v":30.66,"d":"$30.66"}},null,"Mar",5,5,"New Model"]
[1,null,"NVR5-4100PX+(MM)",null,"H.265 Stand Alone NVR, 4CH  5MP at 25fps, MM case with PoE",4,"5MP","24Mbps/\n24Mbps","25fps 5MP ","HDMI, VGA","1 of 6TB Max","Based on IPC Only","Based on IPC Only","Based on IPC Only","with PoE \nDDA Analytic\nLPR","No",{"v":58.5,"d":"$58.50"},null,"EOL",{"$f":"SUM((Q7*1.095)+((Q7*1.07)*Sheet1!C$5))","v":{"v":64.0575,"d":"$64.06"}},null,"Yes",5,5,"EOL, replaced by \nNVR5-4100PXN(MM)"]
[null,null,"NVR5-4100PXN(MM)",null,"H.265 Stand Alone NDAA NVR, 4CH  5MP at 25fps, MM case with PoE",4,"5MP","40Mbps/\n64Mbps","25fps 5MP ","HDMI, VGA","1 of 6TB Max","Based on IPC Only","Based on IPC Only","Based on IPC Only","with PoE \nDDA Analytic\nLPR","Yes",{"v":45,"d":"$45.00"},null,"Yes",{"$f":"SUM((Q8*1.095)+((Q8*1.07)*Sheet1!C$5))","v":{"v":49.275,"d":"$49.28"}},null,"Mar",5,5,"New Model"]
[null,null,"NVR5-8200XN(MM)",null,"H.265 Stand Alone NDAA NVR, 8CH  5MP at 25fps. MM case",8,"5MP","64Mbps/\n64Mbps","25fps 5MP ","HDMI, VGA","1 of 6TB Max","Based on IPC Only","Based on IPC Only","Based on IPC Only","None PoE \nDDA Analytic\nLPR","Yes",{"v":33,"d":"$33.00"},null,"Yes",{"$f":"SUM((Q9*1.095)+((Q9*1.07)*Sheet1!C$5))","v":{"v":36.135,"d":"$36.14"}},null,"Yes",5,5]
[1,null,"NVR8-8200FA",null,"H.265 Stand Alone NVR, 8CH  8MP at 25fps. Small 1U case",8,"8MP","80Mbps/\n80Mbps","25fps 8MP ","HDMI 4K, VGA","1 of 8TB Max","1+IPC","1+IPC","In- 8+IPC Out- 4+IPC","None PoE\nFace \nDDA Analytic  FishEye\nLPR","No",{"v":88,"d":"$88.00"},null,"EOL",{"$f":"SUM((Q10*1.095)+((Q10*1.07)*Sheet1!C$5))","v":{"v":96.36,"d":"$96.36"}},null,"Yes",4,4,"EOL, replaced by \nNVR12-8200FAN"]
[null,null,"NVR12-8200FAN",null,"H.265 Stand Alone NVR, 8CH  12MP at 25fps. Small 1U case",8,"12MP","80Mbps/\n80Mbps","25fps 8MP ","HDMI 4K, VGA","1 of 8TB Max","1+IPC","1+IPC","In- 8+IPC Out- 4+IPC","None PoE\nFace \nDDA Analytic  FishEye\nLPR","Yes",{"v":88,"d":"$88.00"},null,"Yes",{"$f":"SUM((Q11*1.095)+((Q11*1.07)*Sheet1!C$5))","v":{"v":96.36,"d":"$96.36"}},null,"Yes",4,4,"New Model"]
[1,null,"NVR8-8200N",null,"H.265 Stand Alone NVR, 8CH  8MP at 25fps. Small 1U case",8,"8MP","80Mbps/\n80Mbps","25fps 8MP ","HDMI 4K, VGA","1 of 8TB Max","1+IPC","1+IPC","Based on IPC Only","None PoE \nDDA Analytic\nLPR\nCheck Point Protect","Yes",{"v":57,"d":"$57.00"},null,"Yes",{"$f":"SUM((Q12*1.095)+((Q12*1.07)*Sheet1!C$5))","v":{"v":62.415,"d":"$62.42"}},null,"Yes",4,4]
[1,null,"NVR5-8200PX+(MM)",null,"H.265 Stand Alone NVR, 8CH  5MP at 25fps, MM case with PoE",8,"5MP","40Mbps/\n40Mbps","25fps 5MP ","HDMI, VGA","1 of 6TB Max","Based on IPC Only","Based on IPC Only","Based on IPC Only","with PoE \nDDA Analytic\nLPR","No",{"v":88,"d":"$88.00"},null,"EOL",{"$f":"SUM((Q13*1.095)+((Q13*1.07)*Sheet1!C$5))","v":{"v":96.36,"d":"$96.36"}},null,"Yes",5,5,"EOL, replaced by \nNVR5-8200PXN(MM)"]
[null,null,"NVR5-8200PXN(MM)",null,"H.265 Stand Alone NDAA NVR, 8CH  5MP at 25fps, MM case with PoE",8,"5MP","64Mbps/\n64Mbps","25fps 5MP ","HDMI, VGA","1 of 6TB Max","Based on IPC Only","Based on IPC Only","Based on IPC Only","with PoE \nDDA Analytic\nLPR","Yes",{"v":60,"d":"$60.00"},null,"Yes",{"$f":"SUM((Q14*1.095)+((Q14*1.07)*Sheet1!C$5))","v":{"v":65.7,"d":"$65.70"}},null,"Feb",5,5,"New Model"]
[1,null,"NVR8-8200PFA",null,"H.265 Stand Alone NVR, 8CH PoE 8MP at 25fps. Small 1U case",8,"8MP","80Mbps/\n80Mbps","25fps 8MP ","HDMI 4K, VGA","1 of 8TB Max","1+IPC","1+IPC","In- 8+IPC Out- 4+IPC","with PoE \nFace \nDDA Analytic  FishEye\nLPR","No",{"v":140,"d":"$140.00"},null,"EOL",{"$f":"SUM((Q15*1.095)+((Q15*1.07)*Sheet1!C$5))","v":{"v":153.29999999999998,"d":"$153.30"}},null,"Yes",4,4,"EOL, replaced by \nNVR12-8200PFAN"]
[null,null,"NVR12-8200PFAN",null,"H.265 Stand Alone NDAA NVR, 8CH PoE 12MP at 25fps. Small 1U case",8,"12MP","80Mbps/\n80Mbps","25fps 8MP ","HDMI 4K, VGA","1 of 8TB Max","1+IPC","1+IPC","In- 8+IPC Out- 4+IPC","with PoE \nFace \nDDA Analytic  FishEye\nLPR","Yes",{"v":140,"d":"$140.00"},null,"Yes",{"$f":"SUM((Q16*1.095)+((Q16*1.07)*Sheet1!C$5))","v":{"v":153.29999999999998,"d":"$153.30"}},null,"Yes",4,4,"New Model"]
[1,null,"NVR8-16400AN(1U)",null,"H.265 Stand Alone NVR, 16CH  8MP at 25fps. 1U case",16,"8MP","96Mbps/\n96Mbps","25fps 8MP ","HDMI 4K, VGA","2 of 8TB Max","1+IPC","1+IPC","In- 4+IPC Out- 1+IPC","None PoE\nDDA Analytic\nLPR\nCheck Point Protect","Yes",{"v":78,"d":"$78.00"},null,"EOL",{"$f":"SUM((Q17*1.095)+((Q17*1.07)*Sheet1!C$5))","v":{"v":85.41,"d":"$85.41"}},null,"Yes",4,4,"EOL, repalced by \nNVR8-16400AN(1U)-V2"]
[null,null,"NVR8-16400AN(1U)-V2",null,"H.265 Stand Alone NDAA NVR, 16CH  8MP at 25fps. 1U case",16,"8MP","96Mbps/\n96Mbps","25fps 8MP ","HDMI 4K, VGA","2 of 8TB Max","1+IPC","1+IPC","In- 4+IPC Out- 1+IPC","None PoE\nDDA Analytic\nLPR\nCheck Point Protect","Yes",{"v":75,"d":"$75.00"},null,"Yes",{"$f":"SUM((Q18*1.095)+((Q18*1.07)*Sheet1!C$5))","v":{"v":82.125,"d":"$82.13"}},null,"Mar",4,4,"New Model"]
[null,null,"NVR12-16400FAN(1U)",null,"H.265 Stand Alone NDAA NVR, 16CH  12MP at 25fps. 1U case, support Face recognition",16,"12MP","160Mbps/\n160Mbps","25fps 8MP ","HDMI 4K, VGA","2 of 8TB Max","1+IPC","1+IPC","In- 8+IPC Out- 4+IPC","None PoE\n Face \nDDA Analytic  FishEye\nLPR","Yes",{"v":125,"d":"$125.00"},null,"Yes",{"$f":"SUM((Q19*1.095)+((Q19*1.07)*Sheet1!C$5))","v":{"v":136.875,"d":"$136.88"}},null,"Yes",4,4]
[1,null,"NVR8-16400PFA(1U)",null,"H.265 Stand Alone NVR, 16CH PoE  8MP at 25fps. 1U case, support Face recognition",16,"8MP","160Mbps/\n160Mbps","25fps 8MP ","HDMI 4K, VGA","2 of 8TB Max","1+IPC","1+IPC","In- 8+IPC Out- 4+IPC"," with PoE \nFace \nDDA Analytic  FishEye\nLPR","No",{"v":209,"d":"$209.00"},null,"EOL",{"$f":"SUM((Q20*1.095)+((Q20*1.07)*Sheet1!C$5))","v":{"v":228.855,"d":"$228.86"}},null,"Yes",4,4,"EOL, replaced by NVR12-16400PFAN(1U)"]
[null,null,"NVR12-16400PFAN(1U)",null,"H.265 Stand Alone NDAA NVR, 16CH PoE  12MP at 25fps. 1U case, support Face recognition",16,"12MP","160Mbps/\n160Mbps","20fps 12MP ","HDMI 4K, VGA","2 of 8TB Max","1+IPC","1+IPC","In- 8+IPC Out- 4+IPC"," with PoE \nFace \nDDA Analytic  FishEye\nLPR","Yes",{"v":209,"d":"$209.00"},null,"Yes",{"$f":"SUM((Q21*1.095)+((Q21*1.07)*Sheet1!C$5))","v":{"v":228.855,"d":"$228.86"}},null,"Mar",4,4,"New Model"]
[1,null,"NVR12-32800FN-16P(2U)",null,"H.265 Stand Alone NVR, 32CH  8MP at 25fps, 2U case with 16CH PoE, support Face recognition",32,"12MP","192Mbps/\n192Mbps","20fps 12MP ","2 of HDMI, 4K, VGA","8 of 10TB Max","1+IPC","1+IPC","In- 16+IPC Out- 4+IPC","with PoE \nFace \nDDA Analytic  FishEye\nLPR\nCheck Point Protect","Yes",{"v":300,"d":"$300.00"},null,"Yes",{"$f":"SUM((Q22*1.095)+((Q22*1.07)*Sheet1!C$5))","v":{"v":328.5,"d":"$328.50"}},null,"Yes",2,1]
[1,null,"NVR12-32800FAN(1U)",null,"H.265 Stand Alone NVR, 32CH  12MP at 20fps, 1U case, support Face recognition",32,"12MP","192Mbps/\n192Mbps","20fps 12MP ","2 of HDMI, 4K, VGA","2 of 10TB Max","1+IPC","1+IPC","In- 8+IPC Out- 4+IPC"," None*PoE \nFace \nDDA Analytic FishEye \nLPR\n2*Ethernet\nCheck Point Protect","Yes",{"v":157,"d":"$157.00"},null,"Yes",{"v":177.79465,"d":"$177.79"},null,"Yes",4,1]
[1,null,"NVR12-32800RFAN(2U)",null,"H.265 Stand Alone NVR, 32CH  12MP at 20fps, 2U case, support Face recognition, with RAID",32,"12MP","160Mbps/\n160Mbps","20fps 12MP ","2 of HDMI, 4K, VGA","8 of 10TB Max","1+IPC","1+IPC","In- 16+IPC Out- 4+IPC"," None*PoE \nFace \nDDA Analytic FishEye \nLPR\n2*Ethernet\nCheck Point Protect","Yes",{"v":275,"d":"$275.00"},null,"Yes",{"$f":"SUM((Q24*1.095)+((Q24*1.07)*Sheet1!C$5))","v":{"v":301.125,"d":"$301.13"}},null,"Yes",2,1]
[1,null,"NVR8-641600R(2U)",null,"H.265 Stand Alone NVR, 64CH 8MP, 2U case",64,"8MP","320Mbps/\n320Mbps","25fps 8MP ","HDMI, 4K, VGA","8 of 8TB Max","1+IPC","1+IPC","In- 8+IPC Out- 4+IPC"," None PoE  \nDDA Analytic  FishEye\nLPR \nRaid 2*Ethernet","No",{"v":385,"d":"$385.00"},null,"Yes",{"$f":"SUM((Q25*1.095)+((Q25*1.07)*Sheet1!C$5))","v":{"v":421.575,"d":"$421.58"}},null,"Yes",2,1]
[1,null,"NVR8-128RT(3U)",null,"H.265 Stand Alone NVR, 128CH, 8MP at 25fps. 3U case",128,"8MP","384Mbps/\n384Mbps","25fps 8MP ","HDMI, 4K, VGA","16 of 8TB Max","1+IPC","1+IPC","In- 8+IPC Out- 4+IPC"," None PoE  \nDDA Analytic  FishEye\nLPR \nRaid 2*Ethernet","No",{"v":1100,"d":"$1,100.00"},null,"Yes",{"$f":"SUM((Q26*1.095)+((Q26*1.07)*Sheet1!C$5))","v":{"v":1204.5,"d":"$1,204.50"}},null,"Yes",1,1,"EOL, replaced by NVR16-128RFAN(3U)"]
[1,null,"NVR16-128RFAN(3U)",null,"H.265 Stand Alone NDAA NVR, 128CH 16MP,support Face recognition, with RAID,3U case",128,"12MP","768Mbps/\n768Mbps","25fps 15MP ","HDMI, 4K, VGA","16 of 8TB Max","1+IPC","1+IPC","In- 24+IPC Out- 4+IPC"," None PoE  \nDDA Analytic  FishEye\nLPR \nRaid 2*Ethernet","No",{"v":1000,"d":"$1,000.00"},null,"Feb",{"$f":"SUM((Q27*1.095)+((Q27*1.07)*Sheet1!C$5))","v":{"v":1095,"d":"$1,095.00"}},null,"Apr",1,1,"New Model"]
[1]
[1]
[1]
[1]

{"sheet":"IPC","index":2,"n_rows":102,"n_cols":27,"rows_kept":102,"merged":[[0,4,0,26],[1,4,1,13],[1,14,1,26],[2,3,2,26]]}
[{"$nulls":3},"IPC"]
[]
[]
[null,null,"R","Model","free text","Series","Description","Resolution","Housing","WDR","Lens Type","Lens Focal","Protection","IR range","Juntion box","Special features","Analytic","NDAA"," China Price","Old Price","China Availability","Netherlands Price","Old Price","Netherland Availability","Unit Per Carton","MOQ","Remarks"]
[1,1,null,"DI-320IPB-28",null,"B-Sight","Camera- H.265 B-Sight Series, Turret/Dome, IR 20M(1 LED Array),2.8mm lens, 2M with PoE","2MP","Turret/Dome","DWDR","Fixed","2.8mm (102°)","IP67","20M","PR-JB12IP66 - PR-JB12IP64 - PR-WB-A","Made of aluminum alloy and polycarbonate","Camera Tampering \nStandard- Line Crossing \nStandard- Sterile Area","No",{"v":24,"d":"$24.00"},null,"EOL",{"$f":"SUM((S5*1.095)+((S5*1.07)*Sheet1!C$3))","v":{"v":26.28,"d":"$26.28"}},null,"Yes",16,16,"EOL, replaced by DI-320IPBN-36"]
[1,1,null,"DI-320IPBN-36",null,"B-Sight","Camera- H.265 B-Sight Series, Turret/Dome, IR 20M(1 LED Array),3.6mm lens, 2M with PoE","2MP","Turret/Dome","DWDR","Fixed","3.6mm (87°)","IP67","20M","PR-JB12IP66 - PR-JB12IP64 - PR-WB-A","Made of aluminum alloy and polycarbonate","Camera Tampering \nStandard- Line Crossing \nStandard- Sterile Area","Yes",{"v":23,"d":"$23.00"},null,"Yes",{"$f":"SUM((S6*1.095)+((S6*1.07)*Sheet1!C$3))","v":{"v":25.185,"d":"$25.19"}},null,"ט",16,16,"New Model"]
[1,1,null,"I2-320IPB-28",null,"B-Sight","Camera- H.265 B-Sight Series, Bullet, IR 20M(1 LED Array),2.8mm lens, 2M with PoE","2MP","Bullet","DWDR","Fixed","2.8mm (102°)","IP67","20M","PR-JB12IP66 - PR-JB12IP64 - PR-WB-A","Made of aluminum alloy and polycarbonate","Camera Tampering \nStandard- Line Crossing \nStandard- Sterile Area","No",{"v":24,"d":"$24.00"},null,"EOL",{"$f":"SUM((S7*1.095)+((S7*1.07)*Sheet1!C$3))","v":{"v":26.28,"d":"$26.28"}},null,"Yes",18,18,"EOL, replaced by I2-320IPBN-36"]
[1,1,null,"I2-320IPBN-36",null,"B-Sight","Camera- H.265 B-Sight Series, Bullet, IR 20M(1 LED Array),3.6mm lens, 2M with PoE","2MP","Bullet","DWDR","Fixed","3.6mm (87°)","IP67","20M","PR-JB12IP66 - PR-JB12IP64 - PR-WB-A","Made of aluminum alloy and polycarbonate","Camera Tampering \nStandard- Line Crossing \nStandard- Sterile Area","Yes",{"v":23,"d":"$23.00"},null,"Yes",{"$f":"SUM((S8*1.095)+((S8*1.07)*Sheet1!C$3))","v":{"v":25.185,"d":"$25.19"}},null,"Mar",18,18,"New Model"]
[1,1,null,"DI-320IPSN-28-V4",null,"S-Sight","Camera- H.265 S-Sight Series,, Dome/Turret, IR 20M(1 LED Array), 2.8mm Lens 2M with PoE","2MP","Turret/Dome","True WDR","Fixed","2.8mm (107°)","IP67","20M","PR-JB12IP66/\nPR-JB12IP64/ PR-WB-A","Audio In\nBuilt-in Mic \nSD Card","Camera Tampering \nStandard- Line Crossing \nStandard- Sterile Area,\nDDA- Line Crossing \nDDA- Sterile Area\nCheck Point Protect","Yes",{"v":31,"d":"$31.00"},null,"Yes",{"$f":"SUM((S9*1.095)+((S9*1.07)*Sheet1!C$3))","v":{"v":33.945,"d":"$33.95"}},null,"Yes",16,16]
[1,1,null,"DI-320IPSN-28-G",null,"S-Sight","Camera- H.265 S-Sight Series,, Dome/Turret, IR 20M(1 LED Array), 2.8mm Lens 2M with PoE, Grey","2MP","Turret/Dome","DWDR","Fixed","2.8mm (107°)","IP67","20M","PR-JB12IP66-G/ PR-WB-A-G","Built-in Mic \nSD Card","Camera Tampering \nStandard- Line Crossing \nStandard- Sterile Area","Yes",{"v":31,"d":"$31.00"},null,"EOL",{"$f":"SUM((S10*1.095)+((S10*1.07)*Sheet1!C$3))","v":{"v":33.945,"d":"$33.95"}},null,"Yes",16,16,"EOL, replaced by DI-320IPSN-28-G-V2"]
[1,1,null,"DI-320IPSN-28-G-V2",null,"S-Sight","Camera- H.265 S-Sight Series,, Dome/Turret, IR 20M(1 LED Array), 2.8mm Lens 2M with PoE Grey","2MP","Turret/Dome","DWDR","Fixed","2.8mm (107°)","IP67","20M","PR-JB12IP66-G/ PR-WB-A-G","Audio In\nSD Card\nBuilt-in Mic","Camera Tampering \nStandard- Line Crossing \nStandard- Sterile Area\nDDA- Line Crossing \nDDA- Sterile Area","Yes",{"v":31,"d":"$31.00"},null,"Yes",{"$f":"SUM((S11*1.095)+((S11*1.07)*Sheet1!C$3))","v":{"v":33.945,"d":"$33.95"}},null,"Yes",16,16,"New Model"]
[1,1,null,"DI-320IPSN-36",null,"S-Sight","Camera- H.265 S-Sight Series,, Dome/Turret, IR 20M(1 LED Array), 3.6mm Lens 2M with PoE","2MP","Turret/Dome","DWDR","Fixed","3.6mm (89°)","IP67","20M","PR-JB12IP66/\nPR-JB12IP64/ PR-WB-A","Built-in Mic \nSD Card","Camera Tampering \nStandard- Line Crossing \nStandard- Sterile Area","Yes",{"v":31,"d":"$31.00"},null,"EOL",{"$f":"SUM((S12*1.095)+((S12*1.07)*Sheet1!C$3))","v":{"v":33.945,"d":"$33.95"}},null,"Yes",16,16,"EOL, replaced by DI-320IPSN-36-V2"]
[1,1,null,"DI-320IPSN-36-V2",null,"S-Sight","Camera- H.265 S-Sight Series,, Dome/Turret, IR 20M(1 LED Array), 3.6mm Lens 2M with PoE","2MP","Turret/Dome","DWDR","Fixed","3.6mm (89°)","IP67","20M","PR-JB12IP66/\nPR-JB12IP64/ PR-WB-A","Audio In\nSD Card\nBuilt-in Mic","Camera Tampering \nStandard- Line Crossing \nStandard- Sterile Area\nDDA- Line Crossing \nDDA- Sterile Area","Yes",{"v":31,"d":"$31.00"},null,"Yes",{"$f":"SUM((S13*1.095)+((S13*1.07)*Sheet1!C$3))","v":{"v":33.945,"d":"$33.95"}},null,"Feb",16,16,"New Model"]
[1,1,null,"DI-320IPSN-VF-V2",null,"S-Sight","Camera- H.265 S-Sight Series, Dome/Turret IR 40M(2 LED Array), 2.8-12mm lens, 2M with PoE","2MP","Turret/Dome","DWDR","Vari-Focal","2.8-12mm (101.9 °-33°)","IP67","40M","PR-JB14IP66/\nPR-JB14IP64/\nPR-WB-A","Audio In\nSD Card\nBuilt-in Mic","Camera Tampering \nStandard- Line Crossing \nStandard- Sterile Area\nDDA- Line Crossing \nDDA- Sterile Area","Yes",{"v":46,"d":"$46.00"},null,"Yes",{"v":50.37,"d":"$50.37"},null,"Yes",12,6]
[1,1,null,"DI-320IPSN-VF-G",null,"S-Sight","Camera- H.265 S-Sight Series, Dome/Turret IR 40M(2 LED Array), 2.8-12mm lens, 2M with PoE, Grey","2MP","Turret/Dome","DWDR","Vari-Focal","2.8-12mm (88°-34.8°)","IP67","40M","PR-JB14IP66-G/\nPR-WB-A-G","Built-in Mic \nSD Card","Camera Tampering \nStandard- Line Crossing \nStandard- Sterile Area","Yes",{"v":46,"d":"$46.00"},null,"Yes",{"$f":"SUM((S15*1.095)+((S15*1.07)*Sheet1!C$3))","v":{"v":50.37,"d":"$50.37"}},null,"Yes",12,6,"EOL"]
[1,1,null,"DI-320IPSN-MVF-V2",null,"S-Sight","Camera- H.265 S-Sight Series, Dome/Turret IR 40M(2 LED Array),Motorized 2.8-12mm lens, 2M with PoE","2MP","Turret/Dome","True WDR","Motorized Vari-Focal","2.8-12mm\n(102.5°-33.6°)","IP67","40M","PR-JB14IP66-G/\nPR-WB-A-G","Audio In\nI/O\nSD Card\nBuilt-in Mic","Camera Tampering \nStandard- Line Crossing \nStandard- Sterile Area\nDDA- Line Crossing \nDDA- Sterile Area","Yes",{"v":62,"d":"$62.00"},null,"Yes",{"$f":"SUM((S16*1.095)+((S16*1.07)*Sheet1!C$3))","v":{"v":67.89,"d":"$67.89"}},null,"Yes",12,6,"announcing EOL, no replacment"]
[1,1,null,"I2-320IPSN-28-V2",null,"S-Sight","Camera- H.265 S-Sight Series, Bullet, IR 20M(1 LED Array),2.8mm lens, 2M with PoE","2MP","Bullet","True WDR","Fixed","2.8mm (107°)","IP67","20M","PR-JB12IP66/\nPR-JB12IP64","Audio In\nSD Card","Camera Tampering \nStandard- Line Crossing \nStandard- Sterile Area\nDDA- Line Crossing \nDDA- Sterile Area","Yes",{"v":31,"d":"$31.00"},null,"Yes",{"$f":"SUM((S17*1.095)+((S17*1.07)*Sheet1!C$3))","v":{"v":33.945,"d":"$33.95"}},null,"Yes",18,18]
[1,1,null,"I2-320IPSN-28-G",null,"S-Sight","Camera- H.265 S-Sight Series, Bullet, IR 20M(1 LED Array),2.8mm lens, 2M with PoE,grey","2MP","Bullet","DWDR","Fixed","2.8mm (107°)","IP67","20M","PR-JB12IP66/\nPR-JB12IP64","SD Card","Camera Tampering \nStandard- Line Crossing \nStandard- Sterile Area","Yes",{"v":31,"d":"$31.00"},null,"EOL",{"$f":"SUM((S18*1.095)+((S18*1.07)*Sheet1!C$3))","v":{"v":33.945,"d":"$33.95"}},null,"Yes",18,18,"EOL, replaced by I2-320IPSN-28-G-V2"]
[1,1,null,"I2-320IPSN-28-G-V2",null,"S-Sight","Camera- H.265 S-Sight Series, Bullet, IR 20M(1 LED Array),2.8mm lens, 2M with PoE,grey","2MP","Bullet","DWDR","Fixed","2.8mm (107°)","IP67","20M","PR-JB12IP66/\nPR-JB12IP65","Audio In\nSD Card","Camera Tampering \nStandard- Line Crossing \nStandard- Sterile Area\nDDA- Line Crossing \nDDA- Sterile Area","Yes",{"v":31,"d":"$31.00"},null,"Yes",{"$f":"SUM((S19*1.095)+((S19*1.07)*Sheet1!C$3))","v":{"v":33.945,"d":"$33.95"}},null,"Mar",18,18,"New Model"]
[1,1,null,"I2-320IPSN-36",null,"S-Sight","Camera- H.265 S-Sight Series, Bullet, IR 20M(1 LED Array),3.6mm lens, 2M with PoE","2MP","Bullet","DWDR","Fixed","3.6mm (89°)","IP67","20M","PR-JB12IP66/\nPR-JB12IP66","SD Card","Camera Tampering \nStandard- Line Crossing \nStandard- Sterile Area","Yes",{"v":31,"d":"$31.00"},null,"Yes",{"$f":"SUM((S20*1.095)+((S20*1.07)*Sheet1!C$3))","v":{"v":33.945,"d":"$33.95"}},null,"Yes",18,18]
[null,1,null,"I4-320IPSN-28-V4",null,"S-Sight","Camera- H.265 S-Sight Series, Bullet, IR 40M(2 LED Array),2.8mm Lens, 2M with PoE","2MP","Bullet","True WDR","Fixed","2.8mm (104°)","IP67","40M","PR-JB12IP66/\nPR-JB12IP64","Audio In\nSD Card","Camera Tampering \nStandard- Line Crossing \nStandard- Sterile Area\nDDA- Line Crossing \nDDA- Sterile Area","Yes",{"v":40,"d":"$40.00"},null,"Yes",{"$f":"SUM((S21*1.095)+((S21*1.07)*Sheet1!C$3))","v":{"v":43.8,"d":"$43.80"}},null,"Yes",10,10]
[null,1,null,"I4-320IPSN-VF-V4",null,"S-Sight","Camera- H.265 S-Sight Series, Bullet, IR 40M(2 LED Array),2.8-12mm lens, 2M with PoE","2MP","Bullet","True WDR","Fixed","2.8-12mm  (100°-33°)","IP67","40M","PR-JB12IP66/\nPR-JB12IP64","Audio In\nSD Card\nBuilt-in Mic","Camera Tampering \nStandard- Line Crossing \nStandard- Sterile Area\nDDA- Line Crossing \nDDA- Sterile Area","Yes",{"v":46,"d":"$46.00"},null,"Yes",{"$f":"SUM((S22*1.095)+((S22*1.07)*Sheet1!C$3))","v":{"v":50.37,"d":"$50.37"}},null,"Yes",10,10]
[1,1,null,"I4-320IPSN-MVF-V2",null,"S-Sight","Camera- H.265 S-Sight Series, Bullet, IR 40M(2 LED Array), Motorized 2.8-12mm Lens, 2M with PoE","2MP","Bullet","True WDR","Motorized Vari-Focal","2.8-12mm\n(102.5°-33.6°)","IP67","40M","PR-JB12IP66 - PR-JB12IP64","Audio In\nI/O\nSD Card","Camera Tampering \nStandard- Line Crossing \nStandard- Sterile Area\nDDA- Line Crossing \nDDA- Sterile Area","Yes",{"v":62,"d":"$62.00"},null,"EOL",{"$f":"SUM((S23*1.095)+((S23*1.07)*Sheet1!C$3))","v":{"v":67.89,"d":"$67.89"}},null,"Yes",10,10,"announcing EOL, no replacment"]
[1,1,null,"DI-340IPSN-28-V2",null,"S-Sight","Camera- H.265 S-Sight Series,, Dome/Turret IR 20M(1 LED Array), 2.8mm Lens, 4M with PoE","4MP","Turret/Dome","True WDR","Fixed","2.8mm (94°)","IP67","20M","PR-JB12IP66/\nPR-JB12IP64/ PR-WB-A","Audio In\nSD Card\nBuilt-in Mic","Camera Tampering \nStandard- Line Crossing \nStandard- Sterile Area","Yes",{"v":42,"d":"$42.00"},null,"Yes",{"$f":"SUM((S24*1.095)+((S24*1.07)*Sheet1!C$3))","v":{"v":45.99,"d":"$45.99"}},null,"Yes",16,16]
[1,1,null,"DI-340IPSN-28-G-V2",null,"S-Sight","Camera- H.265 S-Sight Series,, Dome/Turret IR 20M(1 LED Array), 2.8mm Lens, 4M with PoE","4MP","Turret/Dome","True WDR","Fixed","2.8mm (94°)","IP67","20M","PR-JB12IP66/\nPR-JB12IP64/ PR-WB-A","Audio In\nSD Card\nBuilt-in Mic","Camera Tampering \nStandard- Line Crossing \nStandard- Sterile Area\nDDA- Line Crossing \nDDA- Sterile Area","Yes",{"v":42,"d":"$42.00"},null,"Yes",{"$f":"SUM((S25*1.095)+((S25*1.07)*Sheet1!C$3))","v":{"v":45.99,"d":"$45.99"}},null,"Yes",16,16]
[1,1,null,"DI-340IPSN-MVF-V2",null,"S-Sight","Camera- H.265 S-Sight Series, Dome/Turret IR 40M(2 LED Array), Motorized  2.8-12mm lens, 4M with PoE","4MP","Turret/Dome","True WDR","Motorized Vari-Focal","2.8-12mm\n(94°-35.7°)","IP67","40M","PR-JB14IP66/\nPR-JB14IP64/\nPR-WB-A","Audio In\nI/O\nSD Card\nBuilt-in Mic","Camera Tampering \nStandard- Line Crossing \nStandard- Sterile Area\nDDA- Line Crossing \nDDA- Sterile Area","Yes",{"v":68,"d":"$68.00"},null,"Yes",{"$f":"SUM((S26*1.095)+((S26*1.07)*Sheet1!C$3))","v":{"v":74.46,"d":"$74.46"}},null,"Yes",12,6]
[1,1,null,"DI-340IPSN-MVF-G",null,"S-Sight","Camera- H.265 S-Sight Series, Dome/Turret IR 40M(2 LED Array), Motorized  2.8-12mm lens, 4M with PoE, Grey","4MP","Turret/Dome","DWDR","Motorized Vari-Focal","2.8-12mm\n(94°-35.7°)","IP67","40M","PR-JB14IP66-G/\nPR-WB-A-G","Audio In\nSD Card\nBuilt-in Mic","Camera Tampering \nStandard- Line Crossing \nStandard- Sterile Area","Yes",{"v":68,"d":"$68.00"},null,"Yes",{"$f":"SUM((S27*1.095)+((S27*1.07)*Sheet1!C$3))","v":{"v":74.46,"d":"$74.46"}},null,"EOL",12,6,"EOL, replaced by DI-340IPSN-MVF-G-V2"]
[{"$nulls":3},"DI-340IPSN-MVF-G-V2",null,"S-Sight","Camera- H.265 S-Sight Series, Dome/Turret IR 40M(2 LED Array), Motorized  2.8-12mm lens, 4M with PoE","4MP","Turret/Dome","DWDR","Motorized Vari-Focal","2.8-12mm\n(94°-35.7°)","IP67","40M","PR-JB14IP66-G/\nPR-WB-A-G","Audio In\nSD Card\nBuilt-in Mic","Camera Tampering \nStandard- Line Crossing \nStandard- Sterile Area\nDDA- Line Crossing \nDDA- Sterile Area","Yes",{"v":68,"d":"$68.00"},null,"Yes",{"$f":"SUM((S28*1.095)+((S28*1.07)*Sheet1!C$3))","v":{"v":74.46,"d":"$74.46"}},null,"Yes",12,6,"New Model"]
[1,1,null,"I2-340IPSN-28-V2",null,"S-Sight","Camera- H.265 S-Sight Series, Bullet, IR 20M(1 LED Array),2.8mm lens, 4M with PoE","4MP","Bullet","True WDR","Fixed","2.8mm (110°)","IP67","20M","PR-JB12IP66/\nPR-JB12IP65","Audio In\nSD Card","Camera Tampering \nStandard- Line Crossing \nStandard- Sterile Area\nDDA- Line Crossing \nDDA- Sterile Area","Yes",{"v":42,"d":"$42.00"},null,"Yes",{"$f":"SUM((S29*1.095)+((S29*1.07)*Sheet1!C$3))","v":{"v":45.99,"d":"$45.99"}},null,"Yes",18,18]
[1,1,null,"I2-340IPSN-28-G-V2",null,"S-Sight","Camera- H.265 S-Sight Series, Bullet, IR 20M(1 LED Array),2.8mm lens, 4M with PoE,grey","4MP","Bullet","True WDR","Fixed","2.8mm (110°)","IP67","20M","PR-JB12IP66/\nPR-JB12IP64","Audio In\nSD Card","Camera Tampering \nStandard- Line Crossing \nStandard- Sterile Area\nDDA- Line Crossing \nDDA- Sterile Area","Yes",{"v":42,"d":"$42.00"},null,"Yes",{"v":45.99,"d":"$45.99"},null,"Yes",18,18]
[1,1,null,"I4-340IPSN-MVF-V2",null,"S-Sight","Camera- H.265 S-Sight Series, Bullet, IR 40M(2 LED Array), Motorized 2.8-12mm lens, 4M with PoE","4MP","Bullet","True WDR","Motorized Vari-Focal","2.8-12mm\n(94°-35.7°)","IP67","40M","PR-JB14IP66/\nPR-JB14IP64","Audio In\nI/O\nSD Card","Camera Tampering \nStandard- Line Crossing \nStandard- Sterile Area\nDDA- Line Crossing \nDDA- Sterile Area","Yes",{"v":68,"d":"$68.00"},null,"Yes",{"$f":"SUM((S31*1.095)+((S31*1.07)*Sheet1!C$3))","v":{"v":74.46,"d":"$74.46"}},null,"Yes",10,10]
[null,1,null,"DAI-350IPSN-28-V4",null,"S-Sight","Camera- H.265 S-Sight Series,, Dome/Turret IR 20M(1 LED Array), 2.8mm Lens, 5M with PoE","5MP","Dome Anti-Vandal","True WDR","Fixed","2.8mm (108°)","IP67/\nIK10","20M","PR-JB12IP66 / PR-ICB21 / \nPR-WB-A","Audio in\nSD Card\nBuild-in Mic","Camera Tampering \nStandard- Line Crossing \nStandard- Sterile Area\nDDA- Line Crossing \nDDA- Sterile Area","Yes",{"v":53,"d":"$53.00"},null,"Yes",{"$f":"SUM((S32*1.095)+((S32*1.07)*Sheet1!C$3))","v":{"v":58.035,"d":"$58.04"}},null,"Yes",16,8,"New Model"]
[null,1,null,"DMA-350IPSN-28-V4",null,"S-Sight","Camera-H.265 S-Sight Series, Mini dome, IR 10M, 2.8mm Lens 5MP with PoE","5MP","Dome Anti-Vandal","True WDR","Fixed","2.8mm (108°)","IP67/\nIK10","10M","PR-B10BJB / \nPR-WB-A","Audio in\nSD Card\nBuild-in Mic","Camera Tampering \nStandard- Line Crossing \nStandard- Sterile Area\nDDA- Line Crossing \nDDA- Sterile Area","Yes",{"v":55,"d":"$55.00"},null,"Yes",{"$f":"SUM((S33*1.095)+((S33*1.07)*Sheet1!C$3))","v":{"v":60.225,"d":"$60.23"}},null,"Mar",20,10,"New Model"]
[1,1,null,"DI-380IPSN-28-V3",null,"S-Sight","Camera- H.265 S-Sight Series,, Dome/Turret IR 20M(1 LED Array), 2.8mm Lens 8M with PoE","8MP","Turret/Dome","True WDR","Fixed","2.8mm (112°)","IP67","20M","PR-JB12IP66/\nPR-JB12IP64/ PR-WB-A","Audio In\nSD Card\nBuilt-in Mic\nCheck Point Protect","Camera Tampering \nStandard- Line Crossing \nStandard- Sterile Area\nDDA- Line Crossing \nDDA- Sterile Area","Yes",{"v":80,"d":"$80.00"},null,"Yes",{"$f":"SUM((S34*1.095)+((S34*1.07)*Sheet1!C$3))","v":{"v":87.6,"d":"$87.60"}},null,"Yes",16,16]
[null,1,null,"DI-380IPSN-28-G-V3",null,"S-Sight","Camera- H.265 S-Sight Series,, Dome/Turret IR 20M(1 LED Array), 2.8mm Lens 8M with PoE","8MP","Turret/Dome","True WDR","Fixed","2.8mm (112°)","IP67","20M","PR-JB12IP66-G/\nPR-WB-A-G","Audio In\nSD Card\nBuilt-in Mic\nCheck Point Protect","Camera Tampering \nStandard- Line Crossing \nStandard- Sterile Area\nDDA- Line Crossing \nDDA- Sterile Area","Yes",{"v":80,"d":"$80.00"},null,"Yes",{"$f":"SUM((S35*1.095)+((S35*1.07)*Sheet1!C$3))","v":{"v":87.6,"d":"$87.60"}},null,"Yes",16,16,"New Model"]
[1,1,null,"DI-380IPSN-MVF-V3",null,"S-Sight","Camera- H.265 S-Sight Series, Dome/Turret IR 40M(2 LED Array), Motorized  2.8-12mm lens, 8M with PoE","8MP","Turret/Dome","True WDR","Motorized Vari-Focal","2.8-12mm\n(102.7°-32.2°)","IP67","40M","PR-JB14IP66/\nPR-JB14IP64/\nPR-WB-A","Audio In\nI/O\nSD Card\nBuilt-in Mic\nCheck Point Protect","Camera Tampering \nStandart- Line Crossing \nStandart- Sterile Area\nDDA- Line Crossing \nDDA- Sterile Area","Yes",{"v":107,"d":"$107.00"},null,"Yes",{"$f":"SUM((S36*1.095)+((S36*1.07)*Sheet1!C$3))","v":{"v":117.16499999999999,"d":"$117.17"}},null,"Yes",12,6]
[null,1,null,"DI-380IPSN-MVF-G-V3",null,"S-Sight","Camera- H.265 S-Sight Series, Dome/Turret IR 40M(2 LED Array), Motorized  2.8-12mm lens, 8M with PoE","8MP","Turret/Dome","True WDR","Motorized Vari-Focal","2.8-12mm\n(102.7°-32.2°)","IP67","40M","PR-JB14IP66/\nPR-JB14IP64/\nPR-WB-A","Audio In\nI/O\nSD Card\nBuilt-in Mic\nCheck Point Protect","Camera Tampering \nStandart- Line Crossing \nStandart- Sterile Area\nDDA- Line Crossing \nDDA- Sterile Area","Yes",{"v":107,"d":"$107.00"},null,"Yes",{"$f":"SUM((S37*1.095)+((S37*1.07)*Sheet1!C$3))","v":{"v":117.16499999999999,"d":"$117.17"}},null,"Yes",12,6,"New Model"]
[1,1,null,"I4-380IPSN-28-V3",null,"S-Sight","Camera- H.265 S-Sight Series, Bullet, IR 40M(1 LED Array),2.8mm lens, 8MP with PoE","8MP","Bullet","True WDR","Fixed","2.8mm (112°)","IP67","20M","PR-JB14IP66/\nPR-JB14IP64","Audio In\nSD Card\nCheck Point Protect","Camera Tampering \nStandart- Line Crossing \nStandart- Sterile Area\nDDA- Line Crossing \nDDA- Sterile Area","Yes",{"v":85,"d":"$85.00"},null,"Yes",{"$f":"SUM((S38*1.095)+((S38*1.07)*Sheet1!C$3))","v":{"v":93.075,"d":"$93.08"}},null,"Yes",20,10]
[1,1,null,"I4-380IPSN-MVF-V3",null,"S-Sight","Camera- H.265 S-Sight Series, Bullet, IR 40M(2 LED Array), Motorized 2.8-12mm lens, 8M with PoE","8MP","Bullet","True WDR","Motorized Vari-Focal","2.8-12mm\n(102.7°-32.2°)","IP67","40M","PR-JB14IP66/\nPR-JB14IP64","Audio In\nI/O\nSD Card\nCheck Point Protect","Camera Tampering \nStandard- Line Crossing \nStandard- Sterile Area\nDDA- Line Crossing \nDDA- Sterile Area","Yes",{"v":107,"d":"$107.00"},null,"Yes",{"$f":"SUM((S39*1.095)+((S39*1.07)*Sheet1!C$3))","v":{"v":117.16499999999999,"d":"$117.17"}},null,"Yes",10,10]
[1,1,null,"DMA-320IPEN-28-V4",null,"Eye-Sight","Camera-H.265 Eye-Sight Series, Mini dome, IR 10M, 2.8mm Lens 2MP with PoE","2M0","Dome Anti-Vandal","True WDR","Fixed","2.8mm (108°)","IP67/\nIK10","10M","PR-B10BJB / \nPR-WB-A","Audio In \nBuilt-in Mic\nSD Card\nCheck Point Protect","Camera Tampering \nDDA- Line Crossing \nDDA- Sterile Area\nDDA- Object Counting (line)\nDDA- Object Counting (area)\nItem monitoring\nHeat Map\nFace Detection,\nCheck Point Protect","Yes",{"v":62,"d":"$62.00"},null,"Yes","N/A",null,"Yes",20,10]
[1,1,null,"DAI-320IPEN-28-V4",null,"Eye-Sight","Camera-H.265 Eye-Sight Series, Anti-Vandal, IR 20M(3 LED Array), 2.8mm lens , 2M with PoE","2MP","Dome Anti-Vandal","True WDR","Fixed","2.8mm (108°)","IP67/\nIK10","20M","PR-JB12IP66 / PR-ICB21 / PR-WB-A","Audio In\nSD Card\nI/O\nBuilt-in Mic\nCheck Point Protect","Camera Tampering \nDDA- Line Crossing \nDDA- Sterile Area\nDDA- Object Counting (line)\nDDA- Object Counting (area)\nItem monitoring\nHeat Map\nFace Detection,\nCheck Point Protect","Yes",{"v":61,"d":"$61.00"},null,"Yes",{"$f":"SUM((S41*1.095)+((S41*1.07)*Sheet1!C$3))","v":{"v":66.795,"d":"$66.80"}},null,"Yes",16,8]
[1,1,null,"DAI-320IPE-MVF",null,"Eye-Sight","Camera-H.265 Eye-Sight Series, Anti-Vandal, IR 40M(2 LED Array), Motorized2.8-12mm lens, 2M with PoE","2MP","Dome Anti-Vandal","True WDR","Motorized Vari-Focal","2.8-12mm\n(103°-32°)","IP67/\nIK10","40M","PR-JB14IP66 / PR-ICB23","Audio In \nAudio Out \nI/O\nSD Card\nBuilt-in Mic","Camera Tampering \nDDA- Line Crossing \nDDA- Sterile Area\nDDA- Object Counting (line)\nDDA- Object Counting (area)\nItem monitoring\nHeat Map\nFace Detection ","No",{"v":88,"d":"$88.00"},null,"Yes",{"$f":"SUM((S42*1.095)+((S42*1.07)*Sheet1!C$3))","v":{"v":96.36,"d":"$96.36"}},null,"Yes",6,6]
[1,1,null,"DI-320IPEN-28",null,"Eye-Sight","Camera- H.265 Eye-Sight Series,, Dome/Turret IR 20M(1 LED Array), 2.8mm Lens, 2M with PoE","2MP","Turret/Dome","True WDR","Fixed","2.8mm (108°)","IP67","20M","PR-JB12IP66/\nPR-JB12IP64/ PR-WB-A","Audio In \nBuilt-in Mic\nSD Card","Camera Tampering \nDDA- Line Crossing \nDDA- Sterile Area\nDDA- Object Counting (line)\nDDA- Object Counting (area)\nItem monitoring\nHeat Map\nFace Detection ","Yes",{"v":58,"d":"$58.00"},null,"Yes",{"$f":"SUM((S43*1.095)+((S43*1.07)*Sheet1!C$3))","v":{"v":63.51,"d":"$63.51"}},null,"Yes",16,16]
[1,1,null,"DI-320IPEN-MVF",null,"Eye-Sight","Camera- H.265 Eye-Sight Series, Dome/Turret IR 40M(2 LED Array), Motorized  2.8-12mm lens, 2M with P","2MP","Turret/Dome","True WDR","Motorized Vari-Focal","2.8-12mm\n(100°-31°)","IP67","40M","PR-JB14IP66/\nPR-JB14IP64/\nPR-WB-A","Audio In \nBuilt-in Mic\nSD Card","Camera Tampering \nDDA- Line Crossing \nDDA- Sterile Area\nDDA- Object Counting (line)\nDDA- Object Counting (area)\nItem monitoring\nHeat Map\nFace Detection ","Yes",{"v":80,"d":"$80.00"},null,"Yes",{"$f":"SUM((S44*1.095)+((S44*1.07)*Sheet1!C$3))","v":{"v":87.6,"d":"$87.60"}},null,"only from China",12,6]
[1,1,null,"I4-320IPEN-36-V4",null,"Eye-Sight","Camera- H.265 Eye-Sight Series, Bullet, IR 40M(2 LED Array), 3.6mm lens, 2M with PoE","2MP","Bullet","True WDR","Fixed","3.6mm (89°)","IP67","40M","PR-JB12IP66/\nPR-JB12IP64","Audio In\nSD Card","Camera Tampering \nDDA- Line Crossing \nDDA- Sterile Area\nDDA- Object Counting (line)\nDDA- Object Counting (area)\nItem monitoring\nHeat Map\nFace Detection,\nCheck Point Protect","Yes",{"v":63,"d":"$63.00"},null,"Yes",{"$f":"SUM((S45*1.095)+((S45*1.07)*Sheet1!C$3))","v":{"v":68.985,"d":"$68.99"}},null,"Yes",10,10]
[1,1,null,"I4-320IPE-MVF",null,"Eye-Sight","Camera- H.265 Eye-Sight Series, Bullet, IR 40M(2 LED Array), Motorized 2.8-12mm lens, 2M with PoE","2MP","Bullet","True WDR","Motorized Vari-Focal","2.8-12mm\n(103°-32°)","IP67","40M","PR-JB12IP66/\nPR-JB12IP64","Audio In\nSD Card","Camera Tampering \nDDA- Line Crossing \nDDA- Sterile Area\nDDA- Object Counting (line)\nDDA- Object Counting (area)\nItem monitoring\nHeat Map\nFace Detection ","No",{"v":81,"d":"$81.00"},null,"EOL",{"$f":"SUM((S46*1.095)+((S46*1.07)*Sheet1!C$3))","v":{"v":88.695,"d":"$88.70"}},null,"Yes",10,10,"EOL, replaced by I4-320IPEN-MVF"]
[1,1,null,"I4-320IPEN-MVF",null,"Eye-Sight","Camera- H.265 Eye-Sight Series, Bullet, IR 40M(2 LED Array), Motorized 2.8-12mm lens, 2M with PoE","2MP","Bullet","True WDR","Motorized Vari-Focal","2.8-12mm\n(103°-32°)","IP67","40M","PR-JB12IP66/\nPR-JB12IP64","Audio In\nSD Card","Camera Tampering \nDDA- Line Crossing \nDDA- Sterile Area\nDDA- Object Counting (line)\nDDA- Object Counting (area)\nItem monitoring\nHeat Map\nFace Detection ","Yes",{"v":81,"d":"$81.00"},null,"Yes","N/A",null,"only from CH",10,10,"New Model"]
[1,1,null,"I6-320IPEN-MVF",null,"Eye-Sight","Camera- H.265 Eye-Sight Series, Bullet, IR 60M(4 LED Array), Motorized 2.8-12mm lens, 2M with PoE","2MP","Bullet","True WDR","Motorized Vari-Focal","2.8-12mm\n(94.3°-29.9°)","IP67","60M","PR-JB14IP66/\nPR-JB14IP64","Audio In \nAudio Out\nI/O\nSD Card","Camera Tampering \nDDA- Line Crossing \nDDA- Sterile Area\nDDA- Object Counting (line)\nDDA- Object Counting (area)\nItem monitoring\nHeat Map\nFace Detection ","Yes",{"v":91,"d":"$91.00"},null,"Yes",{"$f":"SUM((S48*1.095)+((S48*1.07)*Sheet1!C$3))","v":{"v":99.645,"d":"$99.65"}},null,"Yes",8,4]
[1,1,null,"BX-341IPEN",null,"Eye-Sight","Camera-H.265 Eye-Sight Series,Box, 4Mega-Pixel with PoE","4MP","Box","True WDR","None",0,"IP67","None","None","Audio In\nSD Card\nI/O\nBuilt-in Mic","Camera Tampering \nDDA- Line Crossing \nDDA- Sterile Area\nDDA- Object Counting (line)\nDDA- Object Counting (area)\nItem monitoring\nHeat Map\nFace Detection ","Yes",{"v":79,"d":"$79.00"},null,"Yes",{"$f":"SUM((S49*1.095)+((S49*1.07)*Sheet1!C$3))","v":{"v":86.505,"d":"$86.51"}},null,"Yes",18,5]
[1,1,null,"DMA-340IPEN-28",null,"Eye-Sight","Camera-H.265 Eye-Sight Series, Mini dome, IR 10M, 2.8mm Lens 4MP with PoE","4MP","Dome Anti-Vandal","True WDR","Fixed","2.8mm (96°)","IP66/\nIK10","10M","PR-B10BJB / PR-WB-A","Built-in Mic \nAudio In\nSD Card ","Camera Tampering \nDDA- Line Crossing \nDDA- Sterile Area\nDDA- Object Counting (line)\nDDA- Object Counting (area)\nItem monitoring\nHeat Map\nFace Detection ","Yes",{"v":73,"d":"$73.00"},null,"EOL",{"$f":"SUM((S50*1.095)+((S50*1.07)*Sheet1!C$3))","v":{"v":79.935,"d":"$79.94"}},null,"Yes",20,10,"EOL, replaced by DMA-340IPEN-28-V4"]
[null,1,null,"DMA-340IPEN-28-V4",null,"Eye-Sight","Camera-H.265 Eye-Sight Series, Mini dome, IR 10M, 2.8mm Lens 4MP with PoE","4MP","Dome Anti-Vandal","True WDR","Fixed","2.8mm (93°)","IP66/\nIK10","10M","PR-B10BJB / PR-WB-A","Audio In \nAudio Out\nI/O\nSD Card\nBuilt-in Mic\nCheck Point Protect","Camera Tampering \nDDA- Line Crossing \nDDA- Sterile Area\nDDA- Object Counting (line)\nDDA- Object Counting (area)\nItem monitoring\nHeat Map\nFace Detection,","Yes",{"v":71,"d":"$71.00"},null,"Yes",{"$f":"SUM((S51*1.095)+((S51*1.07)*Sheet1!C$3))","v":{"v":77.745,"d":"$77.75"}},null,"Mar",20,10,"New Model"]
[1,1,null,"DAI-340IPEN-28",null,"Eye-Sight","Camera-H.265 Eye-Sight Series, Anti-Vandal, IR 20M(3 LED Array), 2.8mm lens , 4M with PoE","4MP","Dome Anti-Vandal","True WDR","Fixed","2.8mm (108°)","IP67/\nIK10","20M","PR-JB12IP66 / PR-ICB21 / PR-WB-A","Audio In\nSD Card\nI/O\nBuilt-in Mic","Camera Tampering \nDDA- Line Crossing \nDDA- Sterile Area\nDDA- Object Counting (line)\nDDA- Object Counting (area)\nItem monitoring\nHeat Map\nFace Detection ","Yes",{"v":73,"d":"$73.00"},null,"EOL",{"$f":"SUM((S52*1.095)+((S52*1.07)*Sheet1!C$3))","v":{"v":79.935,"d":"$79.94"}},null,"Yes",16,8,"EOL, replaced by DAI-340IPEN-28-V4"]
[{"$nulls":3},"DAI-340IPEN-28-V4",null,"Eye-Sight","Camera-H.265 Eye-Sight Series, Anti-Vandal, IR 20M(3 LED Array), 2.8mm lens , 4M with PoE","4MP","Dome Anti-Vandal","True WDR","Fixed","2.8mm (108°)","IP67/\nIK10","20M","PR-JB12IP66 / PR-ICB21 / PR-WB-A","Audio In\nSD Card\nI/O\nBuilt-in Mic\nCheck Point Protect","Camera Tampering \nDDA- Line Crossing \nDDA- Sterile Area\nDDA- Object Counting (line)\nDDA- Object Counting (area)\nItem monitoring\nHeat Map\nFace Detection ","Yes",{"v":73,"d":"$73.00"},null,"Yes",{"$f":"SUM((S53*1.095)+((S53*1.07)*Sheet1!C$3))","v":{"v":79.935,"d":"$79.94"}},null,"Mar",16,8,"New Model"]
[1,1,null,"DAI-340IPEN-MVF-V4",null,"Eye-Sight","Camera-H.265 Eye-Sight Series, Anti-Vandal, IR 40M(2 LED Array), Motorized2.8-12mm lens, 4M with PoE","4MP","Dome Anti-Vandal","True WDR","Motorized Vari-Focal","2.8-12mm\n(94.3°-29.9°)","IP67/\nIK10","40M","PR-JB14IP66 / PR-ICB23","Audio In \nAudio Out\nI/O\nSD Card\nBuilt-in Mic\nCheck Point Protect","Camera Tampering \nDDA- Line Crossing \nDDA- Sterile Area\nDDA- Object Counting (line)\nDDA- Object Counting (area)\nItem monitoring\nHeat Map\nFace Detection,","Yes",{"v":118,"d":"$118.00"},null,"Yes",{"$f":"SUM((S54*1.095)+((S54*1.07)*Sheet1!C$3))","v":{"v":129.21,"d":"$129.21"}},null,"Yes",6,6]
[1,1,null,"DI-340IPEN-28",null,"Eye-Sight","Camera- H.265 Eye-Sight Series,, Dome/Turret IR 20M(1 LED Array), 2.8mm Lens, 4M with PoE","4MP","Turret/Dome","True WDR","Fixed","2.8mm (100°)","IP67","20M","PR-JB12IP66/\nPR-JB12IP64/ PR-WB-A","Audio In \nBuilt-in Mic\nSD Card","Camera Tampering \nDDA- Line Crossing \nDDA- Sterile Area\nDDA- Object Counting (line)\nDDA- Object Counting (area)\nItem monitoring\nHeat Map\nFace Detection ","Yes",{"v":65,"d":"$65.00"},null,"EOL",{"$f":"SUM((S55*1.095)+((S55*1.07)*Sheet1!C$3))","v":{"v":71.175,"d":"$71.18"}},null,"Yes",16,16,"EOL, replaced by DI-340IPEN-28-V4"]
[null,1,null,"DI-340IPEN-28-V4",null,"Eye-Sight","Camera- H.265 Eye-Sight Series,, Dome/Turret IR 20M(1 LED Array), 2.8mm Lens, 4M with PoE","4MP","Turret/Dome","True WDR","Fixed","2.8mm (96°)","IP67","20M","PR-JB12IP66/\nPR-JB12IP64/ PR-WB-A","Audio In \nAudio Out\nSD Card\nBuilt-in Mic\nCheck Point Protect","Camera Tampering \nDDA- Line Crossing \nDDA- Sterile Area\nDDA- Object Counting (line)\nDDA- Object Counting (area)\nItem monitoring\nHeat Map\nFace Detection,","Yes",{"v":65,"d":"$65.00"},null,"Yes",{"$f":"SUM((S56*1.095)+((S56*1.07)*Sheet1!C$3))","v":{"v":71.175,"d":"$71.18"}},null,"Mar",16,16,"New Model"]
[1,1,null,"DI-340IPEN-28-G",null,"Eye-Sight","Camera- H.265 Eye-Sight Series,, Dome/Turret IR 20M(1 LED Array), 2.8mm Lens, 4M with PoE","4MP","Turret/Dome","True WDR","Fixed","2.8mm (100°)","IP67","20M","PR-JB14IP66-G/\nPR-WB-A-G","Audio In \nBuilt-in Mic\nSD Card","Camera Tampering \nDDA- Line Crossing \nDDA- Sterile Area\nDDA- Object Counting (line)\nDDA- Object Counting (area)\nItem monitoring\nHeat Map\nFace Detection ","Yes",{"v":65,"d":"$65.00"},null,"Yes",{"$f":"SUM((S57*1.095)+((S57*1.07)*Sheet1!C$3))","v":{"v":71.175,"d":"$71.18"}},null,"Yes",16,16]
[1,1,null,"DI-340IPEN-MVF",null,"Eye-Sight","Camera- H.265 Eye-Sight Series, Dome/Turret IR 40M(2 LED Array), Motorized  2.8-12mm lens, 4M with PoE","4MP","Turret/Dome","True WDR","Motorized Vari-Focal","2.8-12mm\n(96°-32°)","IP67","40M","PR-JB14IP66/\nPR-JB14IP64/\nPR-WB-A","Audio In\nSD Card\nBuilt-in Mic","Camera Tampering \nDDA- Line Crossing \nDDA- Sterile Area\nDDA- Object Counting (line)\nDDA- Object Counting (area)\nItem monitoring\nHeat Map\nFace Detection ","Yes",{"v":97,"d":"$97.00"},null,"EOL",{"$f":"SUM((S58*1.095)+((S58*1.07)*Sheet1!C$3))","v":{"v":106.215,"d":"$106.22"}},null,"Yes",12,6,"EOL, replaced by DI-340IPEN-MVF-V4"]
[null,1,null,"DI-340IPEN-MVF-V4",null,"Eye-Sight","Camera- H.265 Eye-Sight Series, Dome/Turret IR 40M(2 LED Array), Motorized  2.8-12mm lens, 4M with P","4MP","Turret/Dome","True WDR","Motorized Vari-Focal","2.8-12mm  (100°-29°)","IP67","40M","PR-JB14IP66/\nPR-JB14IP64/\nPR-WB-A","Audio In \nAudio Out\nI/O\nSD Card\nBuilt-in Mic\nCheck Point Protect","Camera Tampering \nDDA- Line Crossing \nDDA- Sterile Area\nDDA- Object Counting (line)\nDDA- Object Counting (area)\nItem monitoring\nHeat Map\nFace Detection ","Yes",{"v":97,"d":"$97.00"},null,"Yes",{"$f":"SUM((S59*1.095)+((S59*1.07)*Sheet1!C$3))","v":{"v":106.215,"d":"$106.22"}},null,"Mar",12,6,"New Model"]
[1,1,null,"I4-340IPEN-36",null,"Eye-Sight","Camera- H.265 Eye-Sight Series, Bullet, IR 40M(2 LED Array), 3.6mm lens, 4M with PoE","4MP","Bullet","True WDR","Fixed","3.6mm (80.6°)","IP67","40M","PR-JB12IP66/\nPR-JB12IP64","Audio In\nSD Card","Camera Tampering \nDDA- Line Crossing \nDDA- Sterile Area\nDDA- Object Counting (line)\nDDA- Object Counting (area)\nItem monitoring\nHeat Map\nFace Detection ","Yes",{"v":73,"d":"$73.00"},null,"Yes",{"$f":"SUM((S60*1.095)+((S60*1.07)*Sheet1!C$3))","v":{"v":79.935,"d":"$79.94"}},null,"Yes",10,10,"EOL, replaced by I4-340IPEN-36-V4"]
[{"$nulls":3},"I4-340IPEN-36-V4",null,"Eye-Sight","Camera- H.265 Eye-Sight Series, Bullet, IR 40M(2 LED Array), 3.6mm lens, 4M with PoE","4MP","Bullet","True WDR","Fixed","3.6mm (80.6°)","IP67","40M","PR-JB12IP66/\nPR-JB12IP64","Audio In\nAudio Out\nBuilt-in Mic\nSD Card\nCheck Point Protect","Camera Tampering \nDDA- Line Crossing \nDDA- Sterile Area\nDDA- Object Counting (line)\nDDA- Object Counting (area)\nItem monitoring\nHeat Map\nFace Detection ","Yes",{"v":73,"d":"$73.00"},null,"Yes",{"$f":"SUM((S61*1.095)+((S61*1.07)*Sheet1!C$3))","v":{"v":79.935,"d":"$79.94"}},null,"Mar",10,10,"New Model"]
[1,1,null,"I4-340IPEN-36-G",null,"Eye-Sight","Camera- H.265 Eye-Sight Series, Bullet, IR 40M(2 LED Array), 3.6mm lens, 4M with PoE,grey","4MP","Bullet","True WDR","Fixed","3.6mm (80.6°)","IP67","40M","PR-JB12IP66/\nPR-JB12IP64","Audio In\nSD Card","Camera Tampering \nDDA- Line Crossing \nDDA- Sterile Area\nDDA- Object Counting (line)\nDDA- Object Counting (area)\nItem monitoring\nHeat Map\nFace Detection ","Yes",{"v":73,"d":"$73.00"},null,"Yes",{"$f":"SUM((S62*1.095)+((S62*1.07)*Sheet1!C$3))","v":{"v":79.935,"d":"$79.94"}},null,"Yes",10,10]
[1,1,null,"I4-340IPEN-MVF-V4",null,"Eye-Sight","Camera- H.265 Eye-Sight Series, Bullet, IR 40M(2 LED Array), Motorized 2.8-12mm lens, 4M with PoE","4MP","Bullet","True WDR","Motorized Vari-Focal","2.8-12mm\n(94.3°-29.9°)","IP67","40M","PR-JB12IP66/\nPR-JB12IP64","Audio In \nSD Card\nCheck Point Protect","Camera Tampering \nDDA- Line Crossing \nDDA- Sterile Area\nDDA- Object Counting (line)\nDDA- Object Counting (area)\nItem monitoring\nHeat Map\nFace Detection,","Yes",{"v":102,"d":"$102.00"},null,"Yes",{"$f":"SUM((S63*1.095)+((S63*1.07)*Sheet1!C$3))","v":{"v":111.69,"d":"$111.69"}},null,"Yes",10,10]
[1,1,null,"I6-340IPEN-MVF-V4",null,"Eye-Sight","Camera- H.265 Eye-Sight Series, Bullet, IR 60M(4 LED Array), Motorized 2.8-12mm lens, 4M with PoE","4MP","Bullet","True WDR","Motorized Vari-Focal","2.8-12mm\n(96°-32°)","IP67","60M","PR-JB14IP66/\nPR-JB14IP64","Audio In \nAudio Out\nI/O\nSD Card\nBuilt-in Mic\nCheck Point Protect","Camera Tampering \nDDA- Line Crossing \nDDA- Sterile Area\nDDA- Object Counting (line)\nDDA- Object Counting (area)\nItem monitoring\nHeat Map\nFace Detection,","Yes",{"v":118,"d":"$118.00"},null,"Yes",{"$f":"SUM((S64*1.095)+((S64*1.07)*Sheet1!C$3))","v":{"v":129.21,"d":"$129.21"}},null,"Yes",8,4]
[1,1,null,"I6-340IPE-MVF-G",null,"Eye-Sight","Camera- H.265 Eye-Sight Series, Bullet, IR 60M(4 LED Array), Motorized 2.8-12mm lens, 4M with PoE","4MP","Bullet","True WDR","Motorized Vari-Focal","2.8-12mm\n(96°-32°)","IP67","60M","PR-JB14IP66/\nPR-JB14IP64","Audio In\nAudio Out\nSD Card\nI/O","Camera Tampering \nDDA- Line Crossing \nDDA- Sterile Area\nDDA- Object Counting (line)\nDDA- Object Counting (area)\nItem monitoring\nHeat Map\nFace Detection ","No",{"v":118,"d":"$118.00"},null,"EOL",{"v":129.21,"d":"$129.21"},null,"EOL",8,4,"announcing EOL, no replacment"]
[null,1,null,"I8-340IPEN-MVF2-V4",null,"Eye-Sight","Camera- H.265 Eye-Sight Series, Bullet, IR 80M(4 LED Array), Motorized 7-22mm lens, 4M with PoE","4MP","Bullet","True WDR","Motorized Vari-Focal","7-22mm\n(43°-18°)","IP67","80M","PR-JB14IP66/\nPR-JB14IP64","Audio In\nAudio Out\nSD Card\nI/O","Camera Tampering \nDDA- Line Crossing \nDDA- Sterile Area\nDDA- Object Counting (line)\nDDA- Object Counting (area)\nItem monitoring\nHeat Map\nFace Detection ","Yes",{"v":125,"d":"$125.00"},null,"Yes",{"v":129.21,"d":"$129.21"},null,"Yes",8,4]
[1,1,null,"DI-380IPEN-MVF-V3",null,"Eye-Sight","Camera- H.265 Eye-Sight Series,Dome/Turret IR 40M(2 LED Array), Motorized 2.8-12mm lens, 8M with PoE","8MP","Turret/Dome","True WDR","Motorized Vari-Focal","2.8-12mm\n(96°-32°)","IP67","40M","PR-JB14IP66/\nPR-JB14IP64/\nPR-WB-A","Audio In \nBuilt-in Mic\nSD Card\nCheck Point Protect","Camera Tampering \nDDA- Line Crossing \nDDA- Sterile Area\nDDA- Object Counting (line)\nDDA- Object Counting (area)\nItem monitoring\nHeat Map\nFace Detection ","Yes",{"v":137,"d":"$137.00"},null,"Yes",{"$f":"SUM((S67*1.095)+((S67*1.07)*Sheet1!C$3))","v":{"v":150.015,"d":"$150.02"}},null,"Yes",12,6]
[null,1,null,"DI-380IPEN-MVF-G-V3",null,"Eye-Sight","Camera- H.265 Eye-Sight Series,Dome/Turret IR 40M(2 LED Array), Motorized 2.8-12mm lens, 8M with PoE","8MP","Turret/Dome","True WDR","Motorized Vari-Focal","2.8-12mm\n(96°-32°)","IP67","40M","PR-JB14IP66-G/\nPR-WB-A-G","Audio In \nBuilt-in Mic\nSD Card\nCheck Point Protect","Camera Tampering \nDDA- Line Crossing \nDDA- Sterile Area\nDDA- Object Counting (line)\nDDA- Object Counting (area)\nItem monitoring\nHeat Map\nFace Detection ","Yes",{"v":137,"d":"$137.00"},null,"Yes",{"$f":"SUM((S68*1.095)+((S68*1.07)*Sheet1!C$3))","v":{"v":150.015,"d":"$150.02"}},null,"Yes",12,6]
[null,1,null,"DAI-380IPEN-MVF-V3",null,"Eye-Sight","Camera-H.265 Eye-Sight Series, Anti-Vandal, IR 40M(2 LED Array), Motorized2.8-12mm lens, 8M with PoE","8MP","Dome Anti-Vandal","True WDR","Motorized Vari-Focal","2.8-12mm\n(95°- 32°)","IP67/\nIK10","40M","PR-JB14IP66 / PR-ICB23","Audio In \nBuilt-in Mic \nAudio Out\nI/O\nSD Card\nCheck Point Protect","Camera Tampering \nDDA- Line Crossing \nDDA- Sterile Area\nDDA- Object Counting\nFace Detection ","Yes",{"v":140,"d":"$140.00"},null,"Yes",{"$f":"SUM((S69*1.095)+((S69*1.07)*Sheet1!C$3))","v":{"v":153.29999999999998,"d":"$153.30"}},null,"Yes",6,6]
[1,1,null,"I6-380IPE-MVF",null,"Eye-Sight","Camera- H.265 Eye-Sight Series, Bullet, IR 60M(4 LED Array), Motorized 2.8-12mm lens, 8M with PoE","8MP","Bullet","True WDR","Motorized Vari-Focal","2.8-12mm\n(96°-32°)","IP67","60M","PR-JB14IP66/\nPR-JB14IP64","Audio In \nAudio Out\nI/O\nSD Card","Camera Tampering \nDDA- Line Crossing \nDDA- Sterile Area\nDDA- Object Counting\nFace Detection ","No",{"v":150,"d":"$150.00"},null,"EOL",{"$f":"SUM((S70*1.095)+((S70*1.07)*Sheet1!C$3))","v":{"v":164.25,"d":"$164.25"}},null,"Yes",8,4,"EOL, repalced by I6-380IPEN-MVF-V3"]
[{"$nulls":3},"I6-380IPEN-MVF-V3",null,"Eye-Sight","Camera- H.265 Eye-Sight Series, Bullet, IR 60M(4 LED Array), Motorized 2.8-12mm lens, 8M with PoE","8MP","Bullet","True WDR","Motorized Vari-Focal","2.8-12mm\n(96°-32°)","IP67","60M","PR-JB14IP66/\nPR-JB14IP64","Audio In \nAudio Out\nI/O\nSD Card\nCheck Point Protect","Camera Tampering \nDDA- Line Crossing \nDDA- Sterile Area\nDDA- Object Counting\nFace Detection ","No",{"v":150,"d":"$150.00"},null,"Yes",{"$f":"SUM((S71*1.095)+((S71*1.07)*Sheet1!C$3))","v":{"v":164.25,"d":"$164.25"}},null,"Feb",8,4,"New Model"]
[1,1,null,"BX-321FR",null,"Smart-Sight","Camera-Smart-Sight series Face recognition, box,2MP with POE","2MP","Box","True WDR","None",0,"None","None","None","Audio In \nBuilt-in Mic \nAudio Out\nI/O\nSD Card","Camera Tampering \nFace Detection \nFace Recognition","No",{"v":166,"d":"$166.00"},null,"Yes","N/A",null,"only from china",20,1]
[1,1,null,"DW-320FR-MVF2\n\n\n",null,"Smart-Sight","Camera-Smart-Sight serie Face Recognition, Turret/Dome, 2MP IR 40M(2LED Array), motorized 7-22mm, with POE","2MP","Turret/Dome","True WDR","Motorized Vari-Focal","7-22mm\n(44°-17.6°)","IP67","10M","PR-JB14IP66/\nPR-JB14IP64 / PR-WB-A","Audio In \nBuilt-in Mic \nSD Card","Camera Tampering \nFace Detection \nFace Recognition","No",{"v":143,"d":"$143.00"},null,"Yes","N/A",null,"only from china",12,1]
[1,1,null,"TW-320FR-MVF2",null,"Smart-Sight","Camera- Smart-Sight series, Face recognition, bullet 2MP,white LED, 7-22mm MVF Lens, with POE","2MP","Bullet","True WDR","Motorized Vari-Focal","7-22mm\n(44°-17.6°)","IP67","10M","PR-JB14IP66/\nPR-JB14IP64","Audio In \nBuilt-in Mic \nAudio Out\nI/O\nSD Card","Camera Tampering \nFace Detection \nFace Recognition","No",{"v":187,"d":"$187.00"},null,"Yes","N/A",null,"only from china",8,1]
[1,1,null,"I6-320LPR-MVF1",null,"Smart-Sight","Camera-Smart series ,LPR, Bullet, 2MP IR 40M(2LED Array), 2.8-12mm MVF Lens, with POE","2MP","Bullet","True WDR","Motorized Vari-Focal","2.8-12mm\n(103.4°-32.4°)","IP67","60M","PR-JB14IP66/\nPR-JB14IP64","Audio In\nAudio Out\nSD Card\nI/O","LPR","No",{"v":199,"d":"$199.00"},null,"Yes",{"$f":"SUM((S75*1.095)+((S75*1.07)*Sheet1!C$3))","v":{"v":217.905,"d":"$217.91"}},null,"Yes",8,1]
[1,1,null,"I6-320LPR-MVF2",null,"Smart-Sight","Camera-Smart series ,LPR, Bullet, 2MP IR 40M(2LED Array), 7-22mm MVF Lens, with POE","2MP","Bullet","True WDR","Motorized Vari-Focal","7-22mm\n(44°-17.6°)","IP67","60M","PR-JB14IP66/\nPR-JB14IP64","Audio In\nAudio Out\nSD Card\nI/O","LPR","No",{"v":199,"d":"$199.00"},null,"Yes",{"$f":"SUM((S76*1.095)+((S76*1.07)*Sheet1!C$3))","v":{"v":217.905,"d":"$217.91"}},null,"Yes",8,1]
[1,1,null,"I6-340LPRN-MVF1",null,"Smart-Sight","Camera-Smart series, LPR, Bullet, 4MP IR 40M(2LED Array),2.8-12mm MVF Lens, with POE,support Wiegand","4MP","Bullet","True WDR","Motorized Vari-Focal","2.8-12mm\n(100.4°-49°)","IP67","60M","PR-JB14IP66/\nPR-JB14IP64","Audio In\nAudio Out\nSD Card\nI/O\nWigand","LPR","Yes",{"v":240,"d":"$240.00"},null,"Yes",{"$f":"SUM((S77*1.095)+((S77*1.07)*Sheet1!C$3))","v":{"v":262.8,"d":"$262.80"}},null,"Yes",8,1]
[1,1,null,"I6-340LPRN-MVF2",null,"Smart-Sight","Camera-Smart series ,LPR, Bullet, 4MP IR 40M(2LED Array), 8-32mm MVF Lens, with POE,support Wiegand","4MP","Bullet","True WDR","Motorized Vari-Focal","8-32mm\n(41°-15.5°)","IP67","85M","PR-JB14IP66/\nPR-JB14IP64","Audio In\nAudio Out\nSD Card\nI/O\nWigand","LPR","Yes",{"v":255,"d":"$255.00"},null,"Yes",{"$f":"SUM((S78*1.095)+((S78*1.07)*Sheet1!C$3))","v":{"v":279.22499999999997,"d":"$279.23"}},null,"Yes",8,1]
[1,1,null,"DI-340AD-MVF",null,"Smart-Sight","Camera- H.265 S-Sight  active deterrence Series,, Dome/Turret, IR LED, motorized Lens 4M with PoE","4MP","Turret/Dome","True WDR","Motorized Vari-Focal","2.8-12mm\n(94.2°-29.8°)","IP67","40M","PR-JB14IP66/ \nPR-JB14IP64/ \nPR-WB-A","Audio In \nBuilt-in Mic \nBuilt-in speaker\nRed/Blue Strobe Light\nSD Card","DDA- Line Crossing \nDDA- Sterile Area\nActive Deterrence","No",{"v":99,"d":"$99.00"},{"v":110,"d":"$110.00"},"Yes",{"$f":"SUM((S79*1.095)+((S79*1.07)*Sheet1!C$3))","v":{"v":108.405,"d":"$108.41"}},{"v":120.45,"d":"$120.45"},"Yes",12,12,"Price reduce"]
[1,1,null,"I4-340AD-MVF",null,"Smart-Sight","Camera- H.265 S-Sight  active deterrence Series, Bullet IR LED, motorized Lens 4M with PoE","4MP","Bullet","True WDR","Motorized Vari-Focal","2.8-12mm\n(94.2°-29.8°)","IP67","40M","PR-JB12IP66/\nPR-JB12IP64","Audio In \nBuilt-in Mic \n Built-in speaker\nRed/Blue Strobe Light\nSD Card","DDA- Line Crossing \nDDA- Sterile Area\nActive Deterrence","No",{"v":99,"d":"$99.00"},{"v":110,"d":"$110.00"},"Yes",{"$f":"SUM((S80*1.095)+((S80*1.07)*Sheet1!C$3))","v":{"v":108.405,"d":"$108.41"}},{"v":120.45,"d":"$120.45"},"Yes",10,10,"Price reduce"]
[1,1,null,"FEI-360IPN",null,"Special","Camera-H.265 IP Series,fisheye,6Mega-Pixel with PoE","6MP","Fish-Eye","DWDR","Fish-Eye","1.07mm (360°)","IP60/IK10","15M","PR-B50JB","Audio In\nAudio Out\nSD Card\nI/O\nBuilt-in Mic","None","Yes",{"v":145,"d":"$145.00"},{"v":165,"d":"$165.00"},"Yes",{"$f":"SUM((S81*1.095)+((S81*1.07)*Sheet1!C$3))","v":{"v":158.775,"d":"$158.78"}},{"v":180.68,"d":"$180.68"},"Yes",12,6,"Price reduce"]
[1,1,null,"IV-320IPSN-37",null,"Special","Camera-H.265 , Dummy PIR, IR 10M(24 LEDs), 3.7mm Pinhole Lens , 1080P PoE","2MP","Hidden","DWDR","Fixed","3.7mm (83°)","IP67","10M","None","Audio In\nSD Card\nBuilt-in Mic","Camera Tampering  \nStandard- Line Crossing \nStandard- Sterile Area","Yes",{"v":46,"d":"$46.00"},null,"Yes",{"$f":"SUM((S82*1.095)+((S82*1.07)*Sheet1!C$3))","v":{"v":50.37,"d":"$50.37"}},null,"Yes",32,16]
[1,1,null,"MC-322IPE-37",null,"Special","Camera-H.265 Hidden, 3.7mm lens, 1080P","2MP","Hidden","True WDR","Fixed","3.7mm (89°)","None","None","None","\nSD Card\nBuilt-in Mic","Camera Tampering \nDDA- Line Crossing \nDDA- Sterile Area\nDDA- Object Counting\nFace Detection \n","No",{"v":110,"d":"$110.00"},null,"Yes",{"$f":"SUM((S83*1.095)+((S83*1.07)*Sheet1!C$3))","v":{"v":120.45,"d":"$120.45"}},null,"Yes",12,12,"EOL"]
[1,1,null,"BMH-THERMAL-3",null,"Special","Thermal Network Bullet Camera, 5MP,3.2mm thermal lens","5MP","Bullet","True WDR","Fixed","Thermal:\n3.2mm  (56°)\nVisible Light:\n7mm  (81°)","IP66","20M","PR-JB12IP66/\nPR-JB12IP64","Audio In\nAudio Out\nSD Card\nI/O\nBuilt-in Speaker\n","Fire Detection\nTemperture alert\nCamera Tampering \nDDA- Line Crossing \nDDA- Sterile Area\nDDA- Object Counting\nFace Detection","Yes",{"v":290,"d":"$290.00"},null,"Yes",{"$f":"SUM((S84*1.095)+((S84*1.07)*Sheet1!C$3))","v":{"v":317.55,"d":"$317.55"}},null,"Yes",10,1]
[1,1,null,"BMH-THERMAL-7",null,"Special","Thermal Network Bullet Camera, 5MP,7 mm thermal lens","5MP","Bullet","True WDR","Fixed","Thermal:\n7mm  (24.8°)\nVisible Light:\n8mm  (38°)","IP66","20M","PR-JB12IP66/\nPR-JB12IP64","Audio In\nAudio Out\nSD Card\nI/O\nBuilt-in Speaker\n","Fire Detection\nTemperture alert\nCamera Tampering \nDDA- Line Crossing \nDDA- Sterile Area\nDDA- Object Counting\nFace Detection","Yes",{"v":300,"d":"$300.00"},null,"Yes",{"$f":"SUM((S85*1.095)+((S85*1.07)*Sheet1!C$3))","v":{"v":328.5,"d":"$328.50"}},null,"Yes",10,1]
[{"$nulls":3},"BLH-THERMAL-19",null,"Special","Thermal Network Bullet Camera, 5MP,19mm thermal lens","5MP","Bullet","True WDR","Fixed","Optical: 16mm (19.8°)\nThermal: 25mm (15°)","IP66","85M","PR-JB12IP66/\nPR-JB12IP64","Audio In\nAudio Out\nSD Card\nI/O\nBuilt-in Speaker\n","Fire Detection\nTemperture alert\nCamera Tampering \nDDA- Line Crossing \nDDA- Sterile Area\nDDA- Object Counting\nFace Detection","Yes",{"v":985,"d":"$985.00"},null,"per request","N/A",null,"only from china\nper request",1,1,"New Model"]
[1,1,null,"BLH-THERMAL-25",null,"Special","Thermal Network Bullet Camera, 5MP,25mm thermal lens","5MP","Bullet","True WDR","Fixed","Optical: 16mm (19.8°)\nThermal: 25mm (15°)","IP66","85M","PR-JB12IP66/\nPR-JB12IP64","Audio In\nAudio Out\nSD Card\nI/O\nBuilt-in Speaker\n","Fire Detection\nTemperture alert\nCamera Tampering \nDDA- Line Crossing \nDDA- Sterile Area\nDDA- Object Counting\nFace Detection","Yes",{"v":1280,"d":"$1,280.00"},null,"per request","N/A",null,"only from china\nper request",1,1,"New Model"]
[null,1,null,"DB-320WIPN",null,"Special","Video doorbell camera, 2MP.2.3mm Lens,Access control function","2MP","DoorBell","DWDR","Fixed","2.3mm  (139°) ","IP65","10M","None","Built-in Mic\nBuilt-in Speaker\nI/O\nSD Card\nWigand\nWi-Fi","SMD\nFace Detection","Yes",{"v":69,"d":"$69.00"},{"v":79,"d":"$79.00"},"Yes",{"$f":"SUM((S88*1.095)+((S88*1.07)*Sheet1!C$3))","v":{"v":75.55499999999999,"d":"$75.56"}},{"v":86.51,"d":"$86.51"},"Yes",20,10,"Price reduce"]
[1,1,null,"DV-320SRN-36",null,"Rainbow","Camera- H.265 S-Sight  Rainbow Series,, Dome/Turret, White LED, 3.6mm Lens 2M with PoE","2MP","Turret/Dome","True WDR","Fixed","3.6mm (84.6°)","IP67","25M (White Led)","PR-JB12IP66/\nPR-JB12IP64/ PR-WB-A","Audio In \nBuilt-in Mic\nSD Card\nColor at night","Camera Tampering \nDDA- Line Crossing \nDDA- Sterile Area\nDDA- Object Counting","Yes",{"v":48,"d":"$48.00"},null,"Yes",{"$f":"SUM((S89*1.095)+((S89*1.07)*Sheet1!C$3))","v":{"v":52.56,"d":"$52.56"}},null,"Yes",16,16]
[1,1,null,"DV-320SRN-28",null,"Rainbow","Camera- H.265 S-Sight  Rainbow Series,, Dome/Turret, White LED, 2.8mm Lens 2M with PoE","2MP","Turret/Dome","True WDR","Fixed","2.8mm (105.2°)","IP67","25M (White Led)","PR-JB12IP66/\nPR-JB12IP64/ PR-WB-A","Audio In \nBuilt-in Mic\nSD Card\nColor at night","Camera Tampering \nDDA- Line Crossing \nDDA- Sterile Area\nDDA- Object Counting","Yes",{"v":48,"d":"$48.00"},null,"Yes",{"$f":"SUM((S90*1.095)+((S90*1.07)*Sheet1!C$3))","v":{"v":52.56,"d":"$52.56"}},null,"Yes",16,16]
[1,1,null,"DH-320SRN-MVF",null,"Rainbow","Camera- H.265 S-Sight Series, Dome/Turret IR 40M(2 LED Array), Motorized  2.8-12mm lens, 2M with PoE","2MP","Turret/Dome","True WDR","Motorized Vari-Focal","2.8-12mm\n(105.4°-34°)","IP67","40M Hybrid High Power LED","PR-JB14IP66/ PR-JB14IP64/ PR-WB-A","Audio In \nBuilt-in Mic\nSD Card\nColor at night","Camera Tampering \nDDA- Line Crossing \nDDA- Sterile Area\nDDA- Object Counting","Yes",{"v":72,"d":"$72.00"},null,"Yes",{"$f":"SUM((S91*1.095)+((S91*1.07)*Sheet1!C$3))","v":{"v":78.84,"d":"$78.84"}},null,"Yes",12,6]
[1,1,null,"TL-320IPSR-36",null,"Rainbow","Camera- H.265 S-Sight Rainbow Series, bullet,  White LED, 3.6mm Lens 2M with PoE","2MP","Bullet","DWDR","Fixed","3.6mm (84.8°)","IP67","25M (White Led)","PR-JB12IP66/\nPR-JB12IP64/ PR-WB-A","Built-in Mic \nSD Card\nColor at night","Camera Tampering \nStandard- Line Crossing \nStandard- Sterile Area","No",{"v":45,"d":"$45.00"},null,"EOL",{"$f":"SUM((S92*1.095)+((S92*1.07)*Sheet1!C$3))","v":{"v":49.275,"d":"$49.28"}},null,"Yes",10,10,"EOL, replaced by BSV-320SRN-36"]
[1,1,null,"BSV-320SRN-36",null,"Rainbow","Camera- H.265 S-Sight Rainbow Series, bullet,  White LED, 3.6mm Lens 2M with PoE","2MP","Bullet","True WDR","Fixed","3.6mm (84.6°)","IP67","25M (White Led)","PR-JB12IP66/\nPR-JB12IP64","Audio In \nBuilt-in Mic\nSD Card\nColor at night","Camera Tampering \nDDA- Line Crossing \nDDA- Sterile Area\nDDA- Object Counting","Yes",{"v":48,"d":"$48.00"},null,"Yes",{"$f":"SUM((S93*1.095)+((S93*1.07)*Sheet1!C$3))","v":{"v":52.56,"d":"$52.56"}},null,"Yes",18,18]
[1,1,null,"BMV-320SRN-36",null,"Rainbow","Camera- H.265 S-Sight  Rainbow Series,, bullet, White LED, 3.6mm Lens 2M with PoE","2MP","Bullet","True WDR","Fixed","3.6mm (84.6°)","IP67","40M (White Led)","PR-JB12IP66/\nPR-JB12IP64","Audio In \nBuilt-in Mic\nSD Card\nColor at night","Camera Tampering \nDDA- Line Crossing \nDDA- Sterile Area\nDDA- Object Counting","Yes",{"v":54,"d":"$54.00"},null,"Yes",{"$f":"SUM((S94*1.095)+((S94*1.07)*Sheet1!C$3))","v":{"v":59.129999999999995,"d":"$59.13"}},null,"Yes",10,10]
[1,1,null,"BMH-320SRN-MVF",null,"Rainbow","Camera- H.265 S-Sight Series, Bullet, IR 40M(2 LED Array), Motorized 2.8-12mm lens, 2M with PoE","2MP","Bullet","True WDR","Motorized Vari-Focal","2.8-12mm\n(105.4°-34°)","IP67","40M Hybrid High Power LED","PR-JB12IP66/\nPR-JB12IP64","Audio In \nBuilt-in Mic\nSD Card\nColor at night","Camera Tampering \nDDA- Line Crossing \nDDA- Sterile Area\nDDA- Object Counting","Yes",{"v":72,"d":"$72.00"},null,"Yes",{"$f":"SUM((S95*1.095)+((S95*1.07)*Sheet1!C$3))","v":{"v":78.84,"d":"$78.84"}},null,"Yes",10,10]
[1,1,null,"DV-340SRN-28",null,"Rainbow","Camera- H.265 S-Sight  Rainbow Series,, Dome/Turret, White LED, 2.8mm Lens 4M with PoE","4MP","Turret/Dome","True WDR","Fixed","2.8mm (99°)","IP67","25M (White Led)","PR-JB12IP66/\nPR-JB12IP64","Audio In \nBuilt-in Mic\nSD Card\nColor at night","Camera Tampering \nDDA- Line Crossing \nDDA- Sterile Area\nDDA- Object Counting","Yes",{"v":54,"d":"$54.00"},null,"Yes",{"$f":"SUM((S96*1.095)+((S96*1.07)*Sheet1!C$3))","v":{"v":59.129999999999995,"d":"$59.13"}},null,"Yes",16,16]
[1,1,null,"DH-340SRN-MVF",null,"Rainbow","Camera- H.265 S-Sight Series, Dome/Turret IR 40M(2 LED Array), Motorized  2.8-12mm lens, 4M with PoE","4MP","Turret/Dome","True WDR","Motorized Vari-Focal","2.8-12mm\n(105.4°-34°)","IP67","40M Hybrid High Power LED","PR-JB14IP66/ PR-JB14IP64/ PR-WB-A","Audio In \nBuilt-in Mic\nSD Card\nColor at night","Camera Tampering \nDDA- Line Crossing \nDDA- Sterile Area\nDDA- Object Counting","Yes",{"v":78,"d":"$78.00"},null,"Yes",{"$f":"SUM((S97*1.095)+((S97*1.07)*Sheet1!C$3))","v":{"v":85.41,"d":"$85.41"}},null,"Yes",12,6]
[1,1,null,"BSV-340SRN-36",null,"Rainbow","Camera- H.265 S-Sight Rainbow Series, bullet,  White LED, 3.6mm Lens 4M with PoE","4MP","Bullet","True WDR","Fixed","3.6mm (98°)","IP67","25M (White Led)","PR-JB12IP66/ PR-JB12IP64","Audio In \nSD Card\nColor at night","Camera Tampering \nDDA- Line Crossing \nDDA- Sterile Area\nDDA- Object Counting","Yes",{"v":52,"d":"$52.00"},null,"Yes",{"$f":"SUM((S98*1.095)+((S98*1.07)*Sheet1!C$3))","v":{"v":56.94,"d":"$56.94"}},null,"Yes",18,18]
[1,1,null,"BMV-340SRN-36",null,"Rainbow","Camera- H.265 S-Sight  Rainbow Series,, bullet, White LED, 3.6mm Lens 4M with PoE","4MP","Bullet","True WDR","Fixed","3.6mm (79°)","IP67","40M (White Led)","PR-JB12IP66/ PR-JB12IP64","Audio In \nBuilt-in Mic\nSD Card\nColor at night","Camera Tampering \nDDA- Line Crossing \nDDA- Sterile Area\nDDA- Object Counting","Yes",{"v":59,"d":"$59.00"},null,"Yes",{"$f":"SUM((S99*1.095)+((S99*1.07)*Sheet1!C$3))","v":{"v":64.605,"d":"$64.61"}},null,"Yes",10,10]
[1,1,null,"BMH-340SRN-MVF",null,"Rainbow","Camera- H.265 S-Sight Series, Bullet, IR 40M(2 LED Array), Motorized 2.8-12mm lens, 4M with PoE","4MP","Bullet","True WDR","Motorized Vari-Focal","2.8-12mm\n(105.4°-34°)","IP67","40M Hybrid High Power LED","PR-JB12IP66/ PR-JB12IP64","Audio In \nBuilt-in Mic\nSD Card\nColor at night","Camera Tampering \nDDA- Line Crossing \nDDA- Sterile Area\nDDA- Object Counting","Yes",{"v":78,"d":"$78.00"},null,"Yes",{"$f":"SUM((S100*1.095)+((S100*1.07)*Sheet1!C$3))","v":{"v":85.41,"d":"$85.41"}},null,"Yes",10,10]
[1,1,null,"DL-340IPERN-36",null,"Rainbow","Camera- H.265 E-Sight Rainbow Series, Dome/Turret , White LED, 3.6mm Lens, 4M with PoE","4MP","Turret/Dome","True WDR","Fixed","3.6mm (77.9°)","IP67","25M (White Led)","PR-JB12IP66/\nPR-JB12IP64/ PR-WB-A","Audio In \nBuilt-in Mic\nSD Card\nColor at night","Camera Tampering \nDDA- Line Crossing \nDDA- Sterile Area\nDDA- Object Counting\nFace Detection \n","Yes",{"v":54,"d":"$54.00"},{"v":80,"d":"$80.00"},"Yes",{"$f":"SUM((S101*1.095)+((S101*1.07)*Sheet1!C$3))","v":{"v":59.129999999999995,"d":"$59.13"}},{"v":87.6,"d":"$87.60"},"Yes",16,16,"Special offer price"]
[1,1,null,"TL-340IPERN-36",null,"Rainbow","Camera- H.265 E-Sight Rainbow Series, bullet, White LED, 3.6mm Lens, 4M with PoE","4MP","Bullet","True WDR","Fixed","3.6mm (77.9°)","IP67","25M (White Led)","PR-JB12IP66/\nPR-JB12IP64","Audio In \nBuilt-in Mic\nSD Card\nColor at night","Camera Tampering \nDDA- Line Crossing \nDDA- Sterile Area\nDDA- Object Counting\nFace Detection \n","Yes",{"v":59,"d":"$59.00"},{"v":85,"d":"$85.00"},"Yes",{"$f":"SUM((S102*1.095)+((S102*1.07)*Sheet1!C$3))","v":{"v":64.605,"d":"$64.61"}},{"v":93.08,"d":"$93.08"},"Yes",10,10,"Special offer price"]

{"sheet":"DVR","index":3,"n_rows":22,"n_cols":26,"rows_kept":22,"merged":[[0,3,0,25],[1,3,1,14],[1,15,1,25],[2,2,2,25]]}
[null,null,"DVR"]
[]
[]
[null,null,"Model","Free text","Description","No. of Channels","No. of IP Channels","HD Max Resolution","HD Max Real-Time Resolution","IP Max Resolution","Bandwidth","HDD","E-Sata","Audio","Video Output","Dry Contact","NDAA"," China Price","Old Price","China Availability","Netherlands Price","Old Price","Netherland Availability","Unit Per Carton","MOQ","Remarks"]
[1,1,"SH-4100A5N-2L(MM)",null,"All In 1 Hybrid Stand Alone DVR-H.265 1080P Lite , 4CH Video Inputs. MM case",4,"up to 2","2MP Lite","2MP Lite","3MP","10Mbps/ 30Mbps","1 of 6TB max",0,"IN- 1+IPC Out- 1+IPC"," HDMI, VGA, CVBS","Based on IPC Only","Yes",{"v":28,"d":"$28.00"},null,"Yes",{"$f":"SUM((R5*1.095)+((R5*1.07)*Sheet1!C$4))","v":{"v":30.66,"d":"$30.66"}},null,"Yes",5,5]
[null,null,"SH-4050A5N-5L(MM)-V2",null,"H.265 All In 1 Hybrid NDAA DVR-5MP Lite, 4CH Video Inputs. MM case, CheckPoint Embedded, SMD",4,"up to 2","5MP Lite","2MP Lite","5MP","16Mbps/ 40Mbps","1 of 10TB max",0,"IN- 1+IPC Out- 1+IPC"," HDMI, VGA, CVBS","Based on IPC Only","Yes",{"v":42,"d":"$42.00"},null,"Yes",{"$f":"SUM((R6*1.095)+((R6*1.07)*Sheet1!C$4))","v":{"v":45.99,"d":"$45.99"}},null,"Yes","5","5"]
[1,1,"SH-4050A5N-5L",null,"H.265 All In 1 Hybrid Stand Alone DVR-5MP Lite, 4CH Video Inputs. Small 1U case",4,"up to 2","5MP Lite","2MP Lite","5MP","16Mbps/ 40Mbps","1 of 8TB max",0,"IN- 4+IPC Out- 1+IPC"," HDMI, VGA, CVBS","IN- 4+IPC Out- 1+IPC","Yes",{"v":53,"d":"$53.00"},null,"Yes",{"$f":"SUM((R7*1.095)+((R7*1.07)*Sheet1!C$4))","v":{"v":58.035,"d":"$58.04"}},null,"Yes",4,4,"announcing EOL, till stock last"]
[1,1,"SH-4050A5N-8L(MM)",null,"H.265 All In 1 Hybrid Stand Alone DVR-8MP Lite, 4CH Video Inputs. MM case",4,"up to 2","8MP Lite","4MP Lite","8MP","16Mbps/\n40Mbps","1 of 6TB max",0,"IN- 1+IPC Out- 1+IPC"," HDMI (4K), VGA, CVBS","Based on IPC Only","Yes",{"v":63,"d":"$63.00"},null,"Yes",{"$f":"SUM((R8*1.095)+((R8*1.07)*Sheet1!C$4))","v":{"v":68.985,"d":"$68.99"}},null,"Yes",5,5]
[1,1,"SH-4050A5-8L",null,"H.265 All In 1 Hybrid Stand Alone DVR-8MP Lite, 4CH Video Inputs. Small 1U case",4,"up to 6","8MP Lite","4MP Lite","8MP","40Mbps/ 40Mbps","1 of 8TB max",1,"IN- 4+IPC Out- 1+IPC"," HDMI (4K), VGA, CVBS","IN- 4+IPC Out- 1+IPC","No",{"v":72,"d":"$72.00"},null,"Yes",{"$f":"SUM((R9*1.095)+((R9*1.07)*Sheet1!C$4))","v":{"v":78.84,"d":"$78.84"}},null,"Yes",4,4,"announcing EOL, till stock last"]
[1,1,"SH-8100A5N-2L(MM)",null,"All In 1 Hybrid Stand Alone DVR-H.265 1080P Lite , 8CH Video Inputs. MM case",8,"up to 4","2MP Lite","1MP ","5MP","16Mbps/\n60Mbps","1 of 6TB max",0,"IN- 1+IPC Out- 1+IPC"," HDMI, VGA","Based on IPC Only","Yes",{"v":37,"d":"$37.00"},null,"Yes",{"$f":"SUM((R10*1.095)+((R10*1.07)*Sheet1!C$4))","v":{"v":40.515,"d":"$40.52"}},null,"Yes",5,5]
[null,null,"SH-8100A5N-5L(MM)-V2",null,"DVR-5MP Lite, 8CH Video Inputs, NDAA, CheckPoint Embedded, MM case. SMD",8,"up to 4","5MP Lite","2MP Lite","5MP","32Mbps/\n60Mbps","1 of 10TB max","32Mbps/\n60Mbps","IN- 1+IPC Out- 1+IPC"," HDMI, VGA, CVBS","Based on IPC Only","Yes",{"v":66,"d":"$66.00"},null,"Yes",{"$f":"SUM((R11*1.095)+((R11*1.07)*Sheet1!C$4))","v":{"v":72.27,"d":"$72.27"}},null,"Yes",5,"5"]
[null,null,"SH-8100A5N-5L-V2",null,"DVR-5MP Lite, 8CH Video Inputs, NDAA, CheckPoint Embedded, Small 1U case",8,"up to 12","5MP Lite","2MP Lite","5MP","60Mbps/\n60Mbps","1 of 8TB max",1,"IN- 8+IPC Out- 1+IPC"," HDMI, VGA, CVBS","IN- 8+IPC Out- 2+IPC","Yes",{"v":82,"d":"$82.00"},null,"Yes",{"$f":"SUM((R12*1.095)+((R12*1.07)*Sheet1!C$4))","v":{"v":89.78999999999999,"d":"$89.79"}},null,"Yes",4,4]
[1,1,"SH-8100A5N-8L(MM)",null,"H.265 All In 1 Hybrid Stand Alone DVR-8MP Lite, 8CH Video Inputs. MM case",8,"up to 8","8MP Lite","4MP Lite","8MP","32Mbps/\n80Mbps","1 of 6TB max",0,"IN- 1+IPC Out- 1+IPC"," HDMI (4K), VGA, CVBS","Based on IPC Only","Yes",{"v":110,"d":"$110.00"},null,"EOL",{"$f":"SUM((R13*1.095)+((R13*1.07)*Sheet1!C$4))","v":{"v":120.45,"d":"$120.45"}},null,"Yes",5,5,"EOL, replace by SH-8100A5N-5L(MM)-V2"]
[null,null,"SH-8100A5N-8L(MM)-V2",null,"H.265 All In 1 Hybrid Stand Alone DVR-8MP Lite, 8CH Video Inputs. MM case",8,"up to 8","8MP Lite","4MP Lite","8MP","32Mbps/\n80Mbps","1 of 6TB max",0,"IN- 1+IPC Out- 1+IPC"," HDMI (4K), VGA, CVBS","Based on IPC Only","Yes",{"v":110,"d":"$110.00"},null,"Yes",{"$f":"SUM((R14*1.095)+((R14*1.07)*Sheet1!C$4))","v":{"v":120.45,"d":"$120.45"}},null,"Yes",5,5,"New Model"]
[null,null,"SH-8100A5N-8L(1U)-V2",null,"H.265 All In 1 Hybrid Stand Alone DVR-8MP Lite, 8CH Video Inputs. 1U case",8,"up to 8","8MP Lite","4MP Lite","8MP","32Mbps/\n96Mbps","2 of 8TB max",1,"IN- 8+IPC Out- 1+IPC"," HDMI (4K), VGA, CVBS","IN- 8+IPC Out- 2+IPC","Yes",{"v":150,"d":"$150.00"},null,"Yes",{"$f":"SUM((R15*1.095)+((R15*1.07)*Sheet1!C$4))","v":{"v":164.25,"d":"$164.25"}},null,"Yes",4,4]
[1,1,"SH-8100A5-8(1U)",null,"H.265 All In 1 Hybrid Stand Alone DVR-8MP, 8CH Video Inputs. 1U case",8,"up to 12","8MP","5MP Lite","8MP","96Mbps/\n128Mbps","2 of 8TB max",1,"IN- 8+IPC Out- 1+IPC"," HDMI (4K), VGA, CVBS","IN- 8+IPC Out- 2+IPC","No",{"v":180,"d":"$180.00"},null,"Yes",{"$f":"SUM((R16*1.095)+((R16*1.07)*Sheet1!C$4))","v":{"v":197.1,"d":"$197.10"}},null,"Yes",4,1,"Soon to be EOL"]
[1,1,"SH-16200A5N-2L(MM)",null,"All In 1 Hybrid Stand Alone DVR-H.265 1080P Lite , 16CH Video Inputs. MM case",16,"up to 2","2MP Lite","1MP","5MP","16Mbps/\n80Mbps","1 of 6TB max",0,"Based on IPC Only"," HDMI, VGA, CVBS","Based on IPC Only","Yes",{"v":62.5,"d":"$62.50"},null,"Yes",{"$f":"SUM((R17*1.095)+((R17*1.07)*Sheet1!C$4))","v":{"v":68.4375,"d":"$68.44"}},null,"Yes",5,5]
[1,1,"SH-16200A5N-5L(MM)",null,"H.265 All In 1 Hybrid Stand Alone DVR-5MP Lite, 16CH Video Inputs. MM case",16,"up to 8","5MP Lite","2MP Lite","5MP","32Mbps/\n80Mbps","1 of 6TB max",0,"IN- 1+IPC Out- 1+IPC"," HDMI, VGA, CVBS","Based on IPC Only","Yes",{"v":110,"d":"$110.00"},null,"Yes",{"$f":"SUM((R18*1.095)+((R18*1.07)*Sheet1!C$4))","v":{"v":120.45,"d":"$120.45"}},null,"Yes",5,5]
[null,null,"SH-16200A5N-5L(1U)V2",null,"H.265 All In 1 Hybrid Stand Alone DVR-5MP Lite, 16CH Video Inputs. 1U case",16,"up to 8","5MP Lite","2MP Lite","5MP","64Mbps/\n96Mbps","2 of 8TB max",1,"IN- 8+IPC Out- 1+IPC"," HDMI, VGA, CVBS","IN- 16+IPC Out- 4+IPC","Yes",{"v":139,"d":"$139.00"},null,"Yes",{"$f":"SUM((R19*1.095)+((R19*1.07)*Sheet1!C$4))","v":{"v":152.20499999999998,"d":"$152.21"}},null,"Yes","4","4"]
[null,null,"SH-16200A5N-8L(1U)",null,"H.265 All In 1 Hybrid Stand Alone DVR- 8MP Lite, 16CH Video Inputs. 1U case",16,"up to 16","8MP Lite","4MP Lite","8MP","64Mbps/\n96Mbps","2 of 8TB max",1,"IN- 8+IPC Out- 1"," HDMI (4K), VGA,CVBS","IN- 16+IPC Out- 4+IPC","Yes",{"v":250,"d":"$250.00"},null,"Yes",{"$f":"SUM((R20*1.095)+((R20*1.07)*Sheet1!C$4))","v":{"v":273.75,"d":"$273.75"}},null,"Yes",4,4]
[null,null,"SH-32400A5N-5L(1.5U)",null,"H.265 All In 1 Hybrid Stand Alone DVR-5MP Lite, 32CH Video Inputs. 1.5U case",32,"up to 16","5MP Lite","2MP Lite","5MP","88Mbps/\n160Mbps","4 of 8TB max",1,"IN- 16+IPC Out- 1+IPC"," HDMI, VGA, CVBS","IN- 16+IPC Out- 4+IPC","Yes",{"v":320,"d":"$320.00"},null,"EOL",{"$f":"SUM((R21*1.095)+((R21*1.07)*Sheet1!C$4))","v":{"v":350.4,"d":"$350.40"}},null,"Mar",2,2,"EOL, replace by \nSH-32400A5N-5L(1.5U)-V2"]
[null,null,"SH-32400A5N-5L(1.5U)-V2",null,"DVR-5MP Lite, 32CH Video Inputs, NDAA, CheckPoint Embedded,1.5U case.",32,"up to 16","5MP Lite","2MP Lite","5MP","88Mbps/\n160Mbps","4 of 8TB max",1,"IN- 16+IPC Out- 1+IPC"," HDMI, VGA, CVBS","IN- 16+IPC Out- 4+IPC","Yes",{"v":300,"d":"$300.00"},null,"Yes",{"$f":"SUM((R22*1.095)+((R22*1.07)*Sheet1!C$4))","v":{"v":328.5,"d":"$328.50"}},null,"Yes",2,2,"New Model"]

{"sheet":"HDC","index":4,"n_rows":59,"n_cols":23,"rows_kept":59,"merged":[[0,3,0,22],[1,3,1,11],[1,12,1,22],[2,2,2,22]]}
[null,null,"HDC"]
[]
[]
[null,null,"Series","Free text","Series","Description","Resolution","Housing","Lens Type","Lens Focal","Protection","IR Range","Juntion box","Special features"," China Price","Old Price","China Availability","Netherlands Price","Old Price","Netherland Availability","Unit Per Carton","MOQ","Remarks"]
[1,null,"DI-320AB-28",null,"Basic","Camera HD-2MP Basic series, Turret, IR 20M (1 LED Array), 2.8mm Lens","2MP","Turret/Dome","Fixed","2.8mm\n(88°)","IP67","20M","PR-JB12IP66 / PR-JB12IP64 / PR-WB-A","HLC",{"v":11,"d":"$11.00"},null,"Yes",{"$f":"SUM((O5*1.095)+((O5*1.07)*Sheet1!C$3))","v":{"v":12.045,"d":"$12.05"}},null,"Yes",16,16,"New model"]
[1,null,"I2-320AB-28",null,"Basic","Camera HD-2MP Basic series, Bullet, IR 20M (1 LED Array), 2.8mm Lens","2MP","Bullet","Fixed","2.8mm\n(88°)","IP67","20M","PR-JB12IP66 / PR-JB12IP64","None",{"v":11,"d":"$11.00"},null,"Yes",{"$f":"SUM((O6*1.095)+((O6*1.07)*Sheet1!C$3))","v":{"v":12.045,"d":"$12.05"}},null,"Mar",18,18,"New model"]
[1,null,"DI-33K0AB-28",null,"Basic","Camera HD-3K Basic series, Turret, IR 20M (1 LED Array), 2.8mm Lens","3K","Turret/Dome","Fixed","2.8mm\n(98°)","IP67","20M","PR-JB12IP66 / PR-JB12IP64 / PR-WB-A","Built-in Mic\nD-WDR\nHLC",{"v":18,"d":"$18.00"},null,"Yes",{"$f":"SUM((O7*1.095)+((O7*1.07)*Sheet1!C$3))","v":{"v":19.71,"d":"$19.71"}},null,"Mar",18,18,"New model"]
[1,null,"I2-33K0AB-28",null,"Basic","Camera HD-3K Basic series, Bullet, IR 20M (1 LED Array), 2.8mm Lens","3K","Bullet","Fixed","2.8mm\n(98°)","IP67","20M","PR-JB12IP66 / PR-JB12IP64","Built-in Mic\nD-WDR\nHLC",{"v":18,"d":"$18.00"},null,"Yes",{"$f":"SUM((O8*1.095)+((O8*1.07)*Sheet1!C$3))","v":{"v":19.71,"d":"$19.71"}},null,"Feb",18,18,"New model"]
[1,null,"BX-391A",null,"Pro","Camera-AHD Pro Series, Box, 1/2.8\" Sensor, 2.0MP","2MP","Box","None","-","-","-","None","HLC",{"v":27,"d":"$27.00"},null,"Yes",{"$f":"SUM((O9*1.095)+((O9*1.07)*Sheet1!C$3))","v":{"v":29.564999999999998,"d":"$29.57"}},null,"Yes",10,10,"EOL item, no replacment"]
[1,null,"DI-320A-28",null,"Pro","Camera HD- 2MP Pro series,  Dome/Turret IR 20M (1 LED Array), 2.8mm Lens","2MP","Turret/Dome","Fixed","2.8mm\n(88°)","IP67","20M","PR-JB12IP66 / PR-JB12IP64 / PR-WB-A","None",{"v":16,"d":"$16.00"},null,"Yes",{"$f":"SUM((O10*1.095)+((O10*1.07)*Sheet1!C$3))","v":{"v":17.52,"d":"$17.52"}},null,"Yes",16,16]
[1,null,"DI-320A-VF",null,"Pro","Camera HD- 2MP Pro series,  Dome/Turret IR 40M(3LED Array), 2.8-12mm Lens","2MP","Turret/Dome","Vari-Focal","2.8-12mm\n(88°-33°)","IP67","40M","PR-JB14IP66 / PR-JB14IP64 / PR-WB-A","None",{"v":25,"d":"$25.00"},null,"Yes",{"$f":"SUM((O11*1.095)+((O11*1.07)*Sheet1!C$3))","v":{"v":27.375,"d":"$27.38"}},null,"Yes",12,6]
[1,null,"DI-320A-VF-G",null,"Pro","Camera HD- 2MP Pro series, Turret IR 40M(3LED Array), 2.8-12mm Lens Grey","2MP","Turret/Dome","Vari-Focal","2.8-12mm\n(88°-33°)","IP67","40M","PR-JB14IP66-G/\nPR-WB-A-G","None",{"v":25,"d":"$25.00"},null,"Yes",{"$f":"SUM((O12*1.095)+((O12*1.07)*Sheet1!C$3))","v":{"v":27.375,"d":"$27.38"}},null,"Yes",12,6]
[1,null,"I2-320A-28  ",null,"Pro","Camera HD- 2MP Pro series, Bullet, IR 20M (1 LED Array), 2.8mm Lens","2MP","Bullet","Fixed","2.8mm\n(88°)","IP67","20M","PR-JB12IP66 / PR-JB12IP64","None",{"v":16,"d":"$16.00"},null,"Yes",{"$f":"SUM((O13*1.095)+((O13*1.07)*Sheet1!C$3))","v":{"v":17.52,"d":"$17.52"}},null,"Yes",18,18]
[1,null,"I4-320A-28",null,"Pro","Camera HD- 2MP Pro series, Bullet, IR 30M (2LED Array), 2.8mm Lens","2MP","Bullet","Fixed","2.8mm\n(88°)","IP67","40M","PR-JB12IP66 / PR-JB12IP64","None",{"v":20,"d":"$20.00"},null,"Yes",{"$f":"SUM((O14*1.095)+((O14*1.07)*Sheet1!C$3))","v":{"v":21.9,"d":"$21.90"}},null,"Yes",10,10]
[1,null,"I4-320A-VF",null,"Pro","Camera HD- 2MP Pro series, Bullet, IR 40M (3 LED Array), 2.8-12mm Lens","2MP","Bullet","Vari-Focal","2.8-12mm\n(88°-33°)","IP67","40M","PR-JB12IP66 / PR-JB12IP64","None",{"v":25.5,"d":"$25.50"},null,"Yes",{"$f":"SUM((O15*1.095)+((O15*1.07)*Sheet1!C$3))","v":{"v":27.9225,"d":"$27.92"}},null,"Yes",10,10]
[1,null,"I4-320A-VF-G",null,"Pro","Camera HD- 2MP Pro series, Bullet, IR 40M (3 LED Array), 2.8-12mm Lens, Grey","2MP","Bullet","Vari-Focal","2.8-12mm\n(88°-33°)","IP67","40M","PR-JB12IP66-G","None",{"v":25.5,"d":"$25.50"},null,"Yes",{"$f":"SUM((O16*1.095)+((O16*1.07)*Sheet1!C$3))","v":{"v":27.9225,"d":"$27.92"}},null,"Yes",10,10]
[1,null,"DI-350A-28",null,"Pro","Camera HD- 5MP Pro series,  Dome/Turret IR 20M (1 LED Array), 2.8mm Lens","5MP","Turret/Dome","Fixed","2.8mm\n(91°)","IP67","20M","PR-JB12IP66 / PR-JB12IP64 / PR-WB-A","D-WDR",{"v":23,"d":"$23.00"},null,"Yes",{"$f":"SUM((O17*1.095)+((O17*1.07)*Sheet1!C$3))","v":{"v":25.185,"d":"$25.19"}},null,"Yes",16,16,"EOL, replaced by \nDI-33K0AP-28"]
[1,null,"DI-33K0AP-28",null,"Pro","Camera HD-3K Basic series, Turret, IR 20M (1 LED Array), 2.8mm Lens","3K","Turret/Dome","Fixed","2.8mm\n(100°)","IP67","20M","PR-JB12IP66 / PR-JB12IP64 / PR-WB-A","Built-in Mic \nD-WDR",{"v":20,"d":"$20.00"},null,"Feb",{"$f":"SUM((O18*1.095)+((O18*1.07)*Sheet1!C$3))","v":{"v":21.9,"d":"$21.90"}},null,"Apr",16,16,"New model"]
[1,null,"DI-350A-VF",null,"Pro","Camera HD- 5MP Pro Series,  Dome/Turret IR 40M(3 LED Array), 2.8-12mm lens","5MP","Turret/Dome","Vari-Focal","2.8-12mm\n(84°-32°)","IP67","40M","PR-JB14IP66 / PR-JB14IP64 / PR-WB-A","D-WDR",{"v":36,"d":"$36.00"},null,"Yes",{"$f":"SUM((O19*1.095)+((O19*1.07)*Sheet1!C$3))","v":{"v":39.42,"d":"$39.42"}},null,"Yes",12,6]
[1,null,"DI-350A-MVF",null,"Pro","Camera HD- 5MP Pro Series,  Dome/Turret IR 40M(3 LED Array), Motorized  2.8-12mm lens","5MP","Turret/Dome","Motorized Vari-Focal","2.8-12mm\n(84°-32°)","IP67","40M","PR-JB14IP66 / PR-JB14IP64 / PR-WB-A","D-WDR",{"v":38,"d":"$38.00"},null,"Yes",{"$f":"SUM((O20*1.095)+((O20*1.07)*Sheet1!C$3))","v":{"v":41.61,"d":"$41.61"}},null,"Yes",12,6,"EOL, replaced by \nDI-33K0AP-MVF"]
[1,null,"DI-33K0AP-MVF",null,"Pro","Camera HD- 3K Pro Series, 16:9,DWDR,Audio over coax,Turret IR 40M, Motorized  2.8-12mm lens","3K","Turret/Dome","Motorized Vari-Focal","2.8-12mm\n(104°-38°)","IP67","40M","PR-JB14IP66 / PR-JB14IP64 / PR-WB-A","Built-in Mic \nD-WDR",{"v":35,"d":"$35.00"},null,"Mar",{"$f":"SUM((O21*1.095)+((O21*1.07)*Sheet1!C$3))","v":{"v":38.324999999999996,"d":"$38.33"}},null,"Apr",12,6,"New model"]
[1,null,"DI-350A-MVF-G",null,"Pro","Camera HD- 5MP Pro Series,  Dome/Turret IR 40M(3 LED Array), Motorized  2.8-12mm lens, Grey","5MP","Turret/Dome","Motorized Vari-Focal","2.8-12mm\n(84°-32°)","IP67","40M","PR-JB14IP66-G / PR-WB-A-G","D-WDR",{"v":40,"d":"$40.00"},null,"Yes",{"$f":"SUM((O22*1.095)+((O22*1.07)*Sheet1!C$3))","v":{"v":43.8,"d":"$43.80"}},null,"Yes",12,6]
[1,null,"DAI-350A-MVF",null,"Pro","Camera HD-5MP Pro series, Anti-vandal, IR 40M (3LED Array), 2.8-12mm motorized Lens","5MP","Dome Anti-Vandal","Motorized Vari-Focal","2.8-12mm\n(84°-32°)","IP67","40M","PR-JBA14IP66","Anti-Vandal \nD-WDR",{"v":42,"d":"$42.00"},null,"Yes",{"$f":"SUM((O23*1.095)+((O23*1.07)*Sheet1!C$3))","v":{"v":45.99,"d":"$45.99"}},null,"Yes",6,6]
[1,null,"I2-350A-28  ",null,"Pro","Camera HD- 5MP Pro series, Bullet, IR 20M (1 LED Array), 2.8mm Lens","5MP","Bullet","Fixed","2.8mm\n(91°)","IP67","20M","PR-JB12IP66 / PR-JB12IP64","D-WDR",{"v":23,"d":"$23.00"},null,"Yes",{"$f":"SUM((O24*1.095)+((O24*1.07)*Sheet1!C$3))","v":{"v":25.185,"d":"$25.19"}},null,"Yes",18,18,"EOL, replaced by \nI2-33K0AP-28"]
[1,null,"I2-33K0AP-28",null,"Pro","Camera HD-3K Pro series, 16:9,DWDR,Audio over coax,Bullet, IR 20M , 2.8mm Lens","3K","Bullet","Fixed","2.8mm\n(100°)","IP67","20M","PR-JB12IP66 / PR-JB12IP64","Built-in Mic \nD-WDR",{"v":20,"d":"$20.00"},null,"Feb",{"$f":"SUM((O25*1.095)+((O25*1.07)*Sheet1!C$3))","v":{"v":21.9,"d":"$21.90"}},null,"Apr",18,18,"New model"]
[1,null,"I4-350A-28",null,"Pro","Camera HD- 5MP Pro series, Bullet, IR 30M (2LED Array), 2.8mm Lens","5MP","Bullet","Fixed","2.8mm\n(91°)","IP67","40M","PR-JB12IP66 / PR-JB12IP64","D-WDR",{"v":28.5,"d":"$28.50"},null,"Yes",{"$f":"SUM((O26*1.095)+((O26*1.07)*Sheet1!C$3))","v":{"v":31.2075,"d":"$31.21"}},null,"Yes",10,10,"EOL, replaced by \nI4-33K0AP-28"]
[1,null,"I4-33K0AP-28",null,"Pro","Camera HD- 3K Pro series, 16:9,DWDR,Audio over coax,Bullet, IR 40M , 2.8Lens","3K","Bullet","Fixed","2.8mm\n(100°)","IP67","40M","PR-JB12IP66 / PR-JB12IP64","Built-in Mic \nD-WDR",{"v":23,"d":"$23.00"},null,"Mar",{"$f":"SUM((O27*1.095)+((O27*1.07)*Sheet1!C$3))","v":{"v":25.185,"d":"$25.19"}},null,"May",10,10,"New model"]
[1,null,"I4-350A-VF",null,"Pro","Camera HD- 5MP Pro series, Bullet, IR 40M(3 LED Array), 2.8-12mm Lens","5MP","Bullet","Vari-Focal","2.8-12mm\n(84°-32°)","IP67","40M","PR-JB12IP66 / PR-JB12IP64","D-WDR",{"v":37,"d":"$37.00"},null,"Yes",{"$f":"SUM((O28*1.095)+((O28*1.07)*Sheet1!C$3))","v":{"v":40.515,"d":"$40.52"}},null,"Yes",10,10]
[1,null,"I4-350A-MVF",null,"Pro","Camera HD- 5MP Pro series, Bullet, IR 40M (3 LED Array), 2.8-12mm motorized Lens","5MP","Bullet","Motorized Vari-Focal","2.8-12mm\n(84°-32°)","IP67","40M","PR-JB12IP66 / PR-JB12IP64","D-WDR",{"v":38.5,"d":"$38.50"},null,"Yes",{"$f":"SUM((O29*1.095)+((O29*1.07)*Sheet1!C$3))","v":{"v":42.1575,"d":"$42.16"}},null,"Yes",10,10,"EOL, replaced by \nI4-33K0AP-MVF"]
[1,null,"I4-33K0AP-MVF",null,"Pro","Camera HD- 3K Pro series, 16:9,DWDR,Audio over coax,Bullet, IR 40M , 2.8-12mm motorized Lens","3K","Bullet","Motorized Vari-Focal","2.8-12mm\n(103°-38°)","IP67","40M","PR-JB12IP66 / PR-JB12IP64","Built-in Mic \nD-WDR",{"v":35,"d":"$35.00"},null,"Feb",{"$f":"SUM((O30*1.095)+((O30*1.07)*Sheet1!C$3))","v":{"v":38.324999999999996,"d":"$38.33"}},null,"Apr",10,10,"New model"]
[1,null,"DI-380A-28",null,"Pro","Camera HD- 8MP Pro series, Dome/Turret, IR 20M (1 LED Array), 2.8mm Lens","8MP","Turret/Dome","Fixed","2.8mm\n(89.3°)","IP67","20M","PR-JB12IP66 / PR-JB12IP64 / PR-WB-A","None",{"v":38,"d":"$38.00"},null,"Yes",{"$f":"SUM((O31*1.095)+((O31*1.07)*Sheet1!C$3))","v":{"v":41.61,"d":"$41.61"}},null,"Yes",16,16]
[1,null,"DI-380A-MVF",null,"Pro","Camera HD- 8MP Pro series, Dome/Turret, IR 40M (3 LED Array), 2.8-12mm motorized Lens","8MP","Turret/Dome","Motorized Vari-Focal","2.8-12mm\n(78°-31.3°)","IP67","40M","PR-JB14IP66 / PR-JB14IP64 / PR-WB-A","None",{"v":55,"d":"$55.00"},null,"Yes",{"$f":"SUM((O32*1.095)+((O32*1.07)*Sheet1!C$3))","v":{"v":60.225,"d":"$60.23"}},null,"Yes",12,6]
[1,null,"DAI-380A-MVF",null,"Pro","Camera HD-8MP Pro series, Anti-vandal, IR 40M (3LED Array), 2.8-12mm motorized Lens","8MP","Dome Anti-Vandal","Motorized Vari-Focal","2.8-12mm\n(83.5°-32°)","IP67","40M","PR-JB14IP66","Anti-Vandal",{"v":60,"d":"$60.00"},null,"Yes",{"$f":"SUM((O33*1.095)+((O33*1.07)*Sheet1!C$3))","v":{"v":65.7,"d":"$65.70"}},null,"Yes",6,6]
[1,null,"I2-380A-28",null,"Pro","Camera HD- 8MP Pro series, Bullet, IR 20M (1 LED Array), 2.8mm Lens","8MP","Bullet","Fixed","2.8mm\n(95°)","IP67","20M","PR-JB12IP66 / PR-JB12IP64","None",{"v":37,"d":"$37.00"},null,"Yes",{"$f":"SUM((O34*1.095)+((O34*1.07)*Sheet1!C$3))","v":{"v":40.515,"d":"$40.52"}},null,"Yes",18,18]
[1,null,"I4-380A-MVF",null,"Pro","Camera HD- 8MP Pro series, Bullet, IR 40M (3 LED Array), 2.8-12mm motorized Lens","8MP","Bullet","Motorized Vari-Focal","2.8-12mm\n(82.5°-31.5°)","IP67","40M","PR-JB12IP66 / PR-JB12IP64","None",{"v":56,"d":"$56.00"},null,"Yes",{"$f":"SUM((O35*1.095)+((O35*1.07)*Sheet1!C$3))","v":{"v":61.32,"d":"$61.32"}},null,"Yes",10,10]
[1,null,"DI-320AU-MVF",null,"Ultra","Camera HD- 2MP Ultra series, Dome/Turret IR 40M (3LED Array), 2.8-12mm motorized Lens","2MP","Turret/Dome","Motorized Vari-Focal","2.8-12mm\n(96°-34°)","IP67","40M","PR-JB14IP66 / PR-JB14IP64 / PR-WB-A","Support WDR",{"v":30,"d":"$30.00"},{"v":37,"d":"$37.00"},"Yes",{"$f":"SUM((O36*1.095)+((O36*1.07)*Sheet1!C$3))","v":{"v":32.85,"d":"$32.85"}},null,"Yes",12,6,"Announcing EOL, special offer"]
[1,null,"DI-320AU-MVF-G",null,"Ultra","Camera HD- 2MP Ultra series, Turret IR 40M (3LED Array), 2.8-12mm motorized Lens Grey","2MP","Turret/Dome","Motorized Vari-Focal","2.8-12mm\n(96°-34°)","IP67","40M","PR-JB14IP66-G/\nPR-WB-A-G","Support WDR",{"v":37,"d":"$37.00"},null,"Yes",{"$f":"SUM((O37*1.095)+((O37*1.07)*Sheet1!C$3))","v":{"v":40.515,"d":"$40.52"}},null,"Yes",12,6]
[1,null,"DAI-320AU-VF",null,"Ultra","Camera HD-2MP Ultra series, Anti-vandal, IR 40M (3LED Array), 2.8-12mm Lens","2MP","Dome Anti-Vandal","Vari-Focal","2.8-12mm\n(88°-33°)","IP67","40M","PR-JBA14IP66","Anti-Vandal \nsupport WDR",{"v":30,"d":"$30.00"},{"v":35,"d":"$35.00"},"Yes",{"$f":"SUM((O38*1.095)+((O38*1.07)*Sheet1!C$3))","v":{"v":32.85,"d":"$32.85"}},null,"Yes",6,6,"Announcing EOL, special offer"]
[1,null,"I4-320AU-MVF ",null,"Ultra","Camera HD- 2MP Ultra series, Bullet , IR 40M (3LED Array), 2.8-12mm motorized Lens","2MP","Bullet","Motorized Vari-Focal","2.8-12mm\n(96°-34°)","IP67","40M","PR-JB12IP66 / PR-JB12IP64","Support WDR",{"v":30,"d":"$30.00"},{"v":38,"d":"$38.00"},"EOL",{"$f":"SUM((O39*1.095)+((O39*1.07)*Sheet1!C$3))","v":{"v":32.85,"d":"$32.85"}},null,"Yes",10,10,"Announcing EOL, special offer"]
[1,null,"DS-392A37 ",null,"Pro","Camera, Dummy smoke detector, 3.7mm lens, 1/3  Sensor 2MP  ","2MP","Hidden","Fixed","3.7mm\n(78°)","-","None","None","HLC",{"v":24,"d":"$24.00"},null,"Yes",{"$f":"SUM((O40*1.095)+((O40*1.07)*Sheet1!C$3))","v":{"v":26.28,"d":"$26.28"}},null,"Yes",36,12]
[1,null,"MW-392A37 ",null,"Pro","Camera-Hidden, Snake camera, Fix lens (3.7mm), 1/3\" Sensor, 2MP, 4 in 1, NTSC","2MP","Hidden","Fixed","3.7mm\n(83°)","-","None","None","HLC",{"v":32,"d":"$32.00"},null,"Yes",{"$f":"SUM((O41*1.095)+((O41*1.07)*Sheet1!C$3))","v":{"v":35.04,"d":"$35.04"}},null,"Yes",36,12]
[1,null,"DL-392A37",null,"Pro","Camera,  Hidden, Spot Light, 3.7mm lens, 1/3 Sensor 2MP ","2MP","Hidden","Fixed","3.7mm\n(78°)","-","None","None","HLC",{"v":26,"d":"$26.00"},null,"Yes",{"$f":"SUM((O42*1.095)+((O42*1.07)*Sheet1!C$3))","v":{"v":28.47,"d":"$28.47"}},null,"Yes",36,12]
[1,null,"MC-392A37",null,"Pro","Camera-Hidden,  camera, Fix lens (3.7mm), 1/3\" Sensor, 2MP, 4 in 1,","2MP","Hidden","Fixed","3.7mm\n(78°)","-","None","None","HLC",{"v":24,"d":"$24.00"},null,"Yes",{"$f":"SUM((O43*1.095)+((O43*1.07)*Sheet1!C$3))","v":{"v":26.28,"d":"$26.28"}},null,"Yes",36,12]
[1,null,"IV-390A37-V2",null,"Pro","Camera, Hidden, Dummy PIR, IR 15M(36 LEDs), 3.7mm lens, 1/3 Sensor, 2MP","2MP","Hidden","Fixed","3.7mm\n(78°)","-","10M","None","HLC",{"v":23,"d":"$23.00"},null,"Yes",{"$f":"SUM((O44*1.095)+((O44*1.07)*Sheet1!C$3))","v":{"v":25.185,"d":"$25.19"}},null,"Yes",36,12]
[1,null,"IV-350A-37",null,"Pro","Camera HD- 5MP, Hidden, Dummy PIR, IR 15M(36 LEDs), 3.7mm lens, 1/3 Sensor, 5MP","5MP","Hidden","Fixed","3.7mm\n(73°)","-","10M","None","None",{"v":29,"d":"$29.00"},null,"EOL",{"$f":"SUM((O45*1.095)+((O45*1.07)*Sheet1!C$3))","v":{"v":31.755,"d":"$31.76"}},null,"Yes",36,12,"EOL item, no replacment"]
[1,null,"DV-320AR-36",null,"Rainbow","Camera HD- 2MP Pro Rainbow series, Turret, IR 20M (1 LED Array), 3.6mm Lens","2MP","Turret/Dome","Fixed","3.6mm\n(84.6°)","IP67","25M","PR-WB-A,\nPR-JB12IP64,\nPR-JB12IP66","Color at night\nBuilt-in Mic\nD-WDR\nHLC",{"v":22,"d":"$22.00"},null,"Yes",{"$f":"SUM((O46*1.095)+((O46*1.07)*Sheet1!C$3))","v":{"v":24.09,"d":"$24.09"}},null,"Yes",16,16]
[1,null,"BSV-320AR-36",null,"Rainbow","Camera HD- 2MP Pro Rainbow series, Bullet, IR 20M (1 LED Array), 3.6mm Lens","2MP","Bullet","Fixed","3.6mm\n(84.6°)","IP67","25M","PR-JB12IP64,\nPR-JB12IP66","Color at night\nBuilt-in Mic\nD-WDR\nHLC",{"v":22,"d":"$22.00"},null,"Yes",{"$f":"SUM((O47*1.095)+((O47*1.07)*Sheet1!C$3))","v":{"v":24.09,"d":"$24.09"}},null,"Yes",18,18]
[1]
[1]
[1]
[1]
[1]
[1]
[1]
[1]
[1]
[1]
[1]
[1]

{"sheet":"PTZ","index":5,"n_rows":35,"n_cols":25,"rows_kept":35,"merged":[[0,2,0,24],[1,2,1,11],[1,12,1,24],[2,1,2,16],[17,1,17,12],[32,1,32,12]]}
[]
[null,"PTZ"]
[]
[null,"Model","Free Text","Description","Series","Resolution","Housing","WDR","Lens Focal","Power Supply","Protection","IR range","Pan/Tilt Range","Special features","Brackets","NDAA"," China Price","Old Price","China Availability","Netherlands Price","Old Price","Netherland Availability","Unit Per Carton","MOQ","Remarks"]
[null,"I5PT-320IPMX4-P",null,"Camera- IP Bullet IR PTZ, 1080P, X10 with IR 50m distance, with POE","IP","2MP","Bullet","DWDR","2.8-12mm\nX4","12VDC/2A","IP66","50M","250° / 65°","H265","PR-B55JB+","Yes",{"v":79,"d":"$79.00"},null,"Yes",{"$f":"SUM((Q5*1.095)+((Q5*1.07)*Sheet1!C$3))","v":{"v":86.505,"d":"$86.51"}},null,"Yes",12,6]
[null,"I5PT-320IPMX10-P",null,"Camera- IP Bullet IR PTZ, 1080P, X10 with IR 50m distance, with POE","IP","2MP","Bullet","DWDR","5.1-51mm\nX10","12VDC/2A","IP66","50M","250° / 65°","H265","PR-B55JB+","Yes",{"v":100,"d":"$100.00"},null,"Yes",{"$f":"SUM((Q6*1.095)+((Q6*1.07)*Sheet1!C$3))","v":{"v":109.5,"d":"$109.50"}},null,"Yes",12,6]
[null,"MZ-20IPM-2(IR)",null,"IP PTZ,1080P, X20 high speed Pan/Tilt/Zoom camera with IR 80m distance","IP","2MP","Mini\nUltra-Z","DWDR","4.7-97mm\nX20","DC12V/3A","IP66","80M","360° (Endless) / -10°~180° (Auto Flip)","4 Pattern\n8 Scan Route\n8 Cruise Lanes\nVMD","Wall bracket included;\nceiling bracket-PR-B20C ","Yes",{"v":150,"d":"$150.00"},null,"Yes",{"$f":"SUM((Q7*1.095)+((Q7*1.07)*Sheet1!C$3))","v":{"v":164.25,"d":"$164.25"}},null,"Yes",4,1]
[null,"Z4-25IPEN-2(IR)",null,"4\" 2MP x25 PTZ, with DDA Analytics,PoE+, 80°/Sec,120dB WDR, SD Card, wall bracket included","IP","2MP","4''","DWDR","4.8-120mm\nX25\n","PoE+ (802.3at) / DC12V/3A","IP66","100M","360° (Endless) / -5°~185° (Auto Flip)","4 Pattern\n8 Scan Route\n8 Cruise Lanes\nVMD","wall bracket included; \nother brackets- \nPR-CB-Z, \nPR-B50PB, \nPR-B50ECB","Yes",{"v":250,"d":"$250.00"},null,"Yes",{"$f":"SUM((Q8*1.095)+((Q8*1.07)*Sheet1!C$3))","v":{"v":273.75,"d":"$273.75"}},null,"Yes",4,1]
[null,"Z5-25IPE-2(IR)",null,"5\"2MP x25 PTZ ,DDA Analytics,PoE+,140°/Sec,120dB WDR,SD Card,1Alarm in/out,1Audio in/out, Wall bracket inclued","IP","2MP","5''","DWDR","4.8-120mm\nX25\n","PoE+ (802.3at) / DC24V/3A / AC24V/3A","IP66","150M","360° (Endless) / -3°~183° (Auto Flip)","4 Pattern\n8 Scan Route\n8 Cruise Lanes\nI/O\nVMD","wall bracket included; \nother brackets- \nPR-CB-Z, \nPR-B50PB, \nPR-B50ECB","No",{"v":306.5,"d":"$306.50"},null,"Yes",{"$f":"SUM((Q9*1.095)+((Q9*1.07)*Sheet1!C$3))","v":{"v":335.6175,"d":"$335.62"}},null,"Yes",2,1]
[null,"Z4-25IPEN-4(IR)",null,"4\" 4MP x25 PTZ, with DDA Analytics, PoE+, 80°/Sec, 120dB WDR, SD Card,wall bracket included","IP","4MP","4''","DWDR","4.8-120mm\nX25\n","PoE+ (802.3at) / DC12V/3A","IP66","100M","360° (Endless) / -5°~185° (Auto Flip)","4 Pattern\n8 Scan Route\n8 Cruise Lanes\nVMD","wall bracket included; \nother brackets- \nPR-CB-Z, \nPR-B50PB, \nPR-B50ECB","Yes",{"v":285,"d":"$285.00"},null,"Yes",{"$f":"SUM((Q10*1.095)+((Q10*1.07)*Sheet1!C$3))","v":{"v":312.075,"d":"$312.08"}},null,"Yes",4,1]
[null,"Z5-25IPE-4(IR)",null,"5\"4MP x25 PTZ ,DDA Analytics,PoE+,140°/Sec,120dB WDR,SD Card,1Alarm in/out,1Audio in/out, Wall bracket inclued","IP","4MP","5''","DWDR","4.8-120mm\nX25\n","PoE+ (802.3at) / DC24V/3A / AC24V/3A","IP66","150M","360° (Endless) / -3°~183° (Auto Flip)","4 Pattern\n8 Scan Route\n8 Cruise Lanes\nI/O\nVMD","wall bracket included; \nother brackets- \nPR-CB-Z, \nPR-B50PB, \nPR-B50ECB","No",{"v":366.5,"d":"$366.50"},null,"Yes",{"$f":"SUM((Q11*1.095)+((Q11*1.07)*Sheet1!C$3))","v":{"v":401.3175,"d":"$401.32"}},null,"Yes",2,1]
[null,"Z6-32IPE-4(IR)",null,"6“4MP x32 PTZ,DDA Analytics,PoE++,250°/Sec,120dB WDR, SD Card, 2Alarm in/out,1Audio in/out,1 wall bracket included","IP","4MP","6''","DWDR","5.6-179.2mm\nX32\n","PoE++ (802.3bt) / AC24V/3A","IP66","200M","360° (Endless) / -25°~205° (Auto Flip)","4 Pattern\n8 Scan Route\n8 Cruise Lanes\nI/O\nRS-485\nVMD","wall bracket included; \nother brackets- \nPR-CB-Z, \nPR-B70PB, \nPR-B70ECB","No",{"v":790,"d":"$790.00"},null,"Yes",{"$f":"SUM((Q12*1.095)+((Q12*1.07)*Sheet1!C$3))","v":{"v":865.05,"d":"$865.05"}},null,"Yes",2,1]
[null,"I5PT-390AX4",null,"Mini PTZ, bullet IR, 1080P, X4  high speed Pan/Tilt/Zoom bullet camera with IR 50m distance","AHD","2MP","Bullet","-","2.8-12mm\nX4","12VDC/2A","IP66","50M","250° Pan / 65° Tilt","Park Action","PR-B55JB+",null,{"v":54.5,"d":"$54.50"},null,"Yes",{"$f":"SUM((Q13*1.095)+((Q13*1.07)*Sheet1!C$3))","v":{"v":59.6775,"d":"$59.68"}},null,"Yes",10,10]
[null,"I5PT-390AX10",null,"PTZ, bullet IR, 1080P, X10  high speed Pan/Tilt/Zoom bullet camera with IR 50m distance","AHD","2MP","Bullet","-","5.1-51mm\nX10","12VDC/2A","IP66","50M","250° Pan / 65° Tilt","Park Action","PR-B55JB+",null,{"v":73.5,"d":"$73.50"},null,"Yes",{"$f":"SUM((Q14*1.095)+((Q14*1.07)*Sheet1!C$3))","v":{"v":80.4825,"d":"$80.48"}},null,"Yes",10,10]
[null,"MZ-10A-2(IR)",null,"ULTRA-Z, 1080P, 10X high speed Pan/Tilt/Zoom Dome camera with IR","AHD","2MP","Mini\nUltra-Z","-","4.7-47mm\nX10","12VDC/2A","IP66","60M","360° (Endless) / 180° (Auto Flip)","4 Pattern\n4 Auto Scan\n8 Group","wall bracket included",null,{"v":136,"d":"$136.00"},null,"Yes",{"$f":"SUM((Q15*1.095)+((Q15*1.07)*Sheet1!C$3))","v":{"v":148.92,"d":"$148.92"}},null,"Yes",4,4]
[null,"ZE-20A-2(IR)",null,"Eco PTZ, 1080P, 4IN1 X20 high speed Pan/Tilt/Zoom PTZ camera with IR 100m distance, with 220V Power","AHD","2MP","Eco-Z","-","4.9-97mm\nX20","12VDC/2A","IP66","100M","360° (Endless) / 180° (Auto Flip)","4 Pattern\n8 Auto Scan\n4 Group","wall bracket included",null,{"v":140,"d":"$140.00"},null,"Yes",{"$f":"SUM((Q16*1.095)+((Q16*1.07)*Sheet1!C$3))","v":{"v":153.29999999999998,"d":"$153.30"}},null,"Yes",2,1]
[null,"ZP-20A-2(IR)",null,"Pro PTZ, 1080P, 4IN1 X20 high speed Pan/Tilt/Zoom PTZ camera with IR 100m distance, with 220V Power","AHD","2MP","Pro-Z","-","4.9-97mm\nX20","24VAC/3A","IP66","100M","360° (Endless) / 180° (Auto Flip)","4 Pattern\n4 Auto Scan\n8 Group\nI/O","wall bracket included",null,{"v":185,"d":"$185.00"},null,"Yes",{"$f":"SUM((Q17*1.095)+((Q17*1.07)*Sheet1!C$3))","v":{"v":202.575,"d":"$202.58"}},null,"Yes",2,1]
[null,"bracket and Accessories"]
[null,"Model","Free Text","Description"," China Price","Old Price","China Availability","Netherlands Price","Old Price","Netherland Availability","Unit Per Carton","MOQ","Remarks"]
[null,"PR-B30C",null,"Ceiling pedant mount bracket for PTZ",{"v":8.5,"d":"$8.50"},null,"Yes",{"$f":"SUM((E20*1.095)+((E20*1.07)*Sheet1!C$11))","v":{"v":9.553064999999998,"d":"$9.55"}},null,"Yes",5,5,"EOL"]
[null,"PR-B30EC",null,"External Corner bracket for PTZ",{"v":8.5,"d":"$8.50"},null,"Yes",{"$f":"SUM((E21*1.095)+((E21*1.07)*Sheet1!C$11))","v":{"v":9.553064999999998,"d":"$9.55"}},null,"Yes",5,5,"EOL"]
[null,"PR-B30IC",null,"Internal Corner bracket for PTZ",{"v":8.5,"d":"$8.50"},null,"Yes",{"$f":"SUM((E22*1.095)+((E22*1.07)*Sheet1!C$11))","v":{"v":9.553064999999998,"d":"$9.55"}},null,"Yes",5,5]
[null,"PR-CB-Z",null,"Ceiling pedant mount bracket for PTZ",{"v":10.5,"d":"$10.50"},null,"Yes",{"$f":"SUM((E23*1.095)+((E23*1.07)*Sheet1!C$11))","v":{"v":11.800845,"d":"$11.80"}},null,"Yes",20,1]
[null,"PR-ICB-Z",null,"In-Ceiling pedant mount bracket for PTZ Z4 models",{"v":13.5,"d":"$13.50"},null,"Yes",{"$f":"SUM((E24*1.095)+((E24*1.07)*Sheet1!C$11))","v":{"v":15.172514999999999,"d":"$15.17"}},null,"Yes",8,1]
[null,"PR-WJB-Z",null,"Bracket- Wall bracket and Junction box  for Z4,Z5,Z6 PTZ",{"v":55,"d":"$55.00"},null,"Yes",{"$f":"SUM((E25*1.095)+((E25*1.07)*Sheet1!C$11))","v":{"v":61.81395,"d":"$61.81"}},null,"Yes",1,1]
[null,"PR-B50PB",null,"Pole mount bracket",{"v":12.5,"d":"$12.50"},null,"Yes",{"$f":"SUM((E26*1.095)+((E26*1.07)*Sheet1!C$11))","v":{"v":14.048625,"d":"$14.05"}},null,"Yes",10,10]
[null,"PR-B50ECB",null,"External Corner bracket ",{"v":12,"d":"$12.00"},null,"Yes",{"$f":"SUM((E27*1.095)+((E27*1.07)*Sheet1!C$11))","v":{"v":13.48668,"d":"$13.49"}},null,"Yes",6,6]
[null,"PR-B60PB",null,"Pole mount bracket for junction box PR-WJB-Z",{"v":37,"d":"$37.00"},null,"Yes",{"$f":"SUM((E28*1.095)+((E28*1.07)*Sheet1!C$11))","v":{"v":41.58393,"d":"$41.58"}},null,"Yes",2,2]
[null,"PR-B60ECB",null,"External Corner bracket for junction box PR-WJB-Z",{"v":33,"d":"$33.00"},null,"Yes",{"$f":"SUM((E29*1.095)+((E29*1.07)*Sheet1!C$11))","v":{"v":37.08837,"d":"$37.09"}},null,"Yes",2,2]
[null,"PR-B70PB",null,"Pole mount bracket for Z6 PTZ",{"v":18,"d":"$18.00"},null,"Yes",{"$f":"SUM((E30*1.095)+((E30*1.07)*Sheet1!C$11))","v":{"v":20.23002,"d":"$20.23"}},null,"Yes",4,4]
[null,"PR-B70ECB",null,"External Corner bracket for Z6 PTZ",{"v":15,"d":"$15.00"},null,"Yes",{"$f":"SUM((E31*1.095)+((E31*1.07)*Sheet1!C$11))","v":{"v":16.85835,"d":"$16.86"}},null,"Yes",2,2]
[null,"PR-B20C",null,"celling bracket for MZ-4 Inch PTZ",{"v":7.5,"d":"$7.50"},null,"Yes",{"$f":"SUM((E32*1.095)+((E32*1.07)*Sheet1!C$11))","v":{"v":8.429175,"d":"$8.43"}},null,"Yes",5,5]
[null,"Joystick"]
[null,"C06",null,"Joystick to control PTZ and DVR",{"v":170,"d":"$170.00"},null,"Yes","N/A",null,"only from CH",5,1,"EOL, please use IP-Key01"]
[null,"IP-Key01",null,"IP controller ",{"v":170,"d":"$170.00"},null,"Yes","N/A",null,"only from CH",5,1]

{"sheet":"Wi-Fi IP","index":6,"n_rows":9,"n_cols":24,"rows_kept":9,"merged":[[0,2,0,23],[1,2,1,11],[1,12,1,23],[2,1,2,23]]}
[]
[null,"Wi-Fi\nIP"]
[]
[null,"Model","Free text","Description","Series","Resolution","Housing","WDR","Lens Type","Lens Focal","Protection","IR range","Juntion box","Special features","Analytic","China Price","Old Price","China Availability","Netherlands Price","Old Price","Netherland Availability","Unit Per Carton","MOQ","Remarks"]
[null,"I3-330WIP536-M",null,"Camera-wireless IPC, 30M (3pcs LED array), 3.6mm lens, 3MP","Special","3MP","Bullet","DWDR","Fix ","3.6mm (90°)","IP66","30M","None","Wireless \nWith WR-04IPC Adapter","None",{"v":33,"d":"$33.00"},null,"Yes",{"$f":"SUM((P5*1.095)+((P5*1.07)*Sheet1!C$3))","v":{"v":36.135,"d":"$36.14"}},null,"Yes",20,20]
[null,"WR-04IPC_V2",null,"4ch Repeater for Wi-Fi camera model I3-330WIP536",null,"None","Adapter","None","None","None","None","N/A","Wall Mount","Installation Audio Prompts","None",{"v":18,"d":"$18.00"},null,"Yes",{"$f":"SUM((P6*1.095)+((P6*1.07)*Sheet1!C$3))","v":{"v":19.71,"d":"$19.71"}},null,"Yes",10,10]
[null,"I2-340WIPSN-28",null,"Camera-wireless IPC, 20M (6pcs LED array), 2.8mm lens, 4MP, PSU not included",null,"4MP","Bullet","True WDR","Fix ","2.8mm (110°)","IP67","20M","PR-JB12IP66/\nPR-JB12IP65","Wireless \nWithout any Adapter,\nSD Card,\nAudio In","Camera Tampering \nStandard- Line Crossing \nStandard- Sterile Area",{"v":50,"d":"$50.00"},null,"Yes",{"$f":"SUM((P7*1.095)+((P7*1.07)*Sheet1!C$3))","v":{"v":54.75,"d":"$54.75"}},null,"Yes",18,18]
[null,"PT-848",null,"PnV 4MP Pan/Tilt IP camera with IR, 2.4G&5G, White",null,"4MP","Pan / Tilt","None","Fix ","2.3mm (84°)","None","10M","N/A","Plug & View,\nTwo Way Audio with \nBuilt-in Microphone & \nSpeaker","Motion \nDetection, Human detection",{"v":26,"d":"$26.00"},null,"Yes",{"$f":"SUM((P8*1.095)+((P8*1.07)*Sheet1!C$3))","v":{"v":28.47,"d":"$28.47"}},null,"Yes",20,20,"New Model"]
[null,"WP-919",null,"1080p PnV Waterproof fix IP camera with IR with EU&US Soket",null,"2MP","Outdoor","None","Fix ","4.0mm","IP66","15M","Wall / \nCeiling Mount Bracket","built-in micorphone \n& speaker","Motion \nDetection",{"v":28,"d":"$28.00"},null,"Yes",{"$f":"SUM((P9*1.095)+((P9*1.07)*Sheet1!C$3))","v":{"v":30.66,"d":"$30.66"}},null,"Yes",20,20]

{"sheet":"PoE Switches","index":7,"n_rows":16,"n_cols":19,"rows_kept":16,"merged":[[0,2,0,18],[1,2,1,8],[1,9,1,18],[2,1,2,18]]}
[]
[null,"PoE Switch  "]
[]
[null,"Model","Free text","Description","Downlink Port","Uplink Port","PoE Power Budget","Power Supply","CCTV MODE","Monitor","China Price","Old Price","China Availability","Netherlands Price","Old Price","Netherland Availability","Unit Per Carton","MOQ","Remarks"]
[null,"PoES-0460C+2I-V2",null,"4-port 10/100Mbps PoE switch,CCTV Mode, 2-port 10/100Mbps UPLINK ,60W Internal power supply","4ch 10/100","2ch 10/100","60W","100-240VAC","Y","N",{"v":18.5,"d":"$18.50"},null,"Yes",{"$f":"SUM((K5*1.095)+((K5*1.07)*Sheet1!C$15))","v":{"v":20.2575,"d":"$20.26"}},null,"Yes",10,10]
[null,"PoES-0460G+1G(HPD)",null,"4+1-port Giga PoE Ethernet Switch, 4 giga ports act as PSE downlink , 1G 55W PD Uplink Port","4ch Giga","1ch Giga","55W","From High Power PoE","N","N",{"v":37,"d":"$37.00"},null,"Yes",{"$f":"SUM((K6*1.095)+((K6*1.07)*Sheet1!C$15))","v":{"v":40.515,"d":"$40.52"}},null,"Yes",10,1]
[null,"PoES-0472GC+2G",null,"4+2-Port Giga PoE Ethernet Switch,4 giga Ports act as downlink and uplink,2x1G Port uplink,72W","4ch Giga","2ch Giga","72W","54v/2.2A","Y","N",{"v":39,"d":"$39.00"},null,"Yes",{"$f":"SUM((K7*1.095)+((K7*1.07)*Sheet1!C$15))","v":{"v":42.705,"d":"$42.71"}},null,"Yes",10,5]
[null,"PoES-08120C+2I-V2",null,"8-port 10/100Mbps PoE switch, CCTV Mode,2-port 10/100Mbps UPLINK , 120W Internal power supply","8ch 10/100","2ch 10/100","120W","100-240VAC","Y","N",{"v":40,"d":"$40.00"},null,"Yes",{"$f":"SUM((K8*1.095)+((K8*1.07)*Sheet1!C$15))","v":{"v":43.8,"d":"$43.80"}},null,"Yes",5,5]
[null,"PoES-08120GC+2GI",null,"8+2 Port Giga PoE Switch,8 giga downlink port, 2 giga uplink port, 120W, with cctv mode","8ch Giga","2ch Giga","120W","100-240VAC","Y","N",{"v":46,"d":"$46.00"},null,"Yes",{"$f":"SUM((K9*1.095)+((K9*1.07)*Sheet1!C$15))","v":{"v":50.37,"d":"$50.37"}},null,"Yes",5,5]
[null,"PoES-08120GCL+2Combo",null,"8+2 Port Giga PoE Switch,8 giga downlink port, 2 giga combo port, 120W, with cctv mode,color LCD","8ch Giga","2ch Giga","120W","100-240VAC","Y","LCD",{"v":87,"d":"$87.00"},null,"Yes",{"$f":"SUM((K10*1.095)+((K10*1.07)*Sheet1!C$15))","v":{"v":95.265,"d":"$95.27"}},null,"Yes",5,5]
[null,"PoES-16250C+2Combo",null,"16CH unmanaged PoE switch, downlink:*16 100mbps, uplink: *2 1000mbps,total PoE is 250W","16ch 10/100","2ch Combo","250W","100-240VAC","Y","N",{"v":115,"d":"$115.00"},null,"Yes",{"$f":"SUM((K11*1.095)+((K11*1.07)*Sheet1!C$15))","v":{"v":125.925,"d":"$125.93"}},null,"Yes",3,3]
[null,"PoES-16250CL+2G+2SFP",null,"16CH unmanaged PoE switch, downlink:*16 100mbps, uplink: *2 1000mbps,total PoE is 250W.CCTV Mode","16ch 10/100","2ch Giga + 2ch SFP","250W","100-240VAC","Y","LCD",{"v":160,"d":"$160.00"},null,"Yes",{"$f":"SUM((K12*1.095)+((K12*1.07)*Sheet1!C$15))","v":{"v":175.2,"d":"$175.20"}},null,"Yes",5,5]
[null,"PoES-16250GCL+2SFP",null,"16-Port Giga PoE Ethernet Switch,16 giga Ports act as downlink and uplink,2SFP,250W","16ch Giga","SFP Only +2ch SFP","250W","100-240VAC","Y","LCD",{"v":175,"d":"$175.00"},null,"Yes",{"$f":"SUM((K13*1.095)+((K13*1.07)*Sheet1!C$15))","v":{"v":191.625,"d":"$191.63"}},null,"Yes",5,5]
[null,"PoES-24370C+2Combo",null,"24CH unmanaged PoE switch, downlink:*24 100mbps, uplink: *2 1000mbps,total PoE is 370W","24ch 10/100","2ch Combo","370W","100-240VAC","Y","N",{"v":130,"d":"$130.00"},null,"Yes",{"$f":"SUM((K14*1.095)+((K14*1.07)*Sheet1!C$15))","v":{"v":142.35,"d":"$142.35"}},null,"Yes",3,3]
[null,"PoES-24370CL+2G+2SFP",null,"24CH unmanaged PoE switch, downlink:*24 100mbps, uplink: *2 1000mbps,total PoE 370W CCTV mode","24ch 10/100","2ch Giga + 2ch SFP","370W","100-240VAC","Y","LCD",{"v":200,"d":"$200.00"},null,"Yes",{"$f":"SUM((K15*1.095)+((K15*1.07)*Sheet1!C$15))","v":{"v":219,"d":"$219.00"}},null,"Yes",5,5]
[null,"PoES-24370GCL+2SFP",null,"24+2SFPPort Giga PoE Ethernet Switch,24 giga Ports act as downlink and uplink,2xSFP slots,370W","24ch Giga","SFP Only +2ch SFP","370W","100-240VAC","Y","LCD",{"v":230,"d":"$230.00"},null,"Yes",{"$f":"SUM((K16*1.095)+((K16*1.07)*Sheet1!C$15))","v":{"v":251.85,"d":"$251.85"}},null,"Yes",5,5]

{"sheet":"PoE Accessories","index":8,"n_rows":13,"n_cols":13,"rows_kept":13,"merged":[[0,2,0,12],[1,2,1,4],[1,5,1,12],[2,1,2,12]]}
[]
[null,"PoE Accessories"]
[]
[null,"Model","Free text","Description","China Price","Old Price","China Availability","Netherlands Price","Old Price","Netherland Availability","Unit Per Carton","MOQ","Remarks"]
[null,"PoEI-0130",null,"1 Channel PoE Ethernet Injector IEEE802.3at (30W) ",{"v":14,"d":"$14.00"},null,"Yes",{"$f":"SUM((E5*1.095)+((E5*1.07)*Sheet1!C$15))","v":{"v":15.33,"d":"$15.33"}},null,"Yes",50,5]
[null,"PoEI-0160",null,"1 Channel 60W Hi-PoE Ethernet Injector, IEEE80",{"v":32,"d":"$32.00"},null,"Yes",{"$f":"SUM((E6*1.095)+((E6*1.07)*Sheet1!C$15))","v":{"v":35.04,"d":"$35.04"}},null,"Yes",50,5]
[null,"PoESP-0112S",null,"1 Channel PoE Ethernet Splitter, IEEE802.3af (13W)",{"v":9,"d":"$9.00"},null,"Yes","N/A",null,"only from CH",100,50]
[null,"PoESP-0124W",null,"1 Channel PoE Ethernet Splitter, IEEE802.3at (24W)",{"v":12,"d":"$12.00"},null,"Yes",{"$f":"SUM((E8*1.095)+((E8*1.07)*Sheet1!C$15))","v":{"v":13.14,"d":"$13.14"}},null,"Yes",50,5]
[null,"PoESP-0172W",null,"1 Channel PoE Ethernet + DC ( 24VDC / 3A) Splitter, \nIEEE802.3at (72W), DC Jack / Terminal Connector Output",{"v":30,"d":"$30.00"},null,"Yes",{"$f":"SUM((E9*1.095)+((E9*1.07)*Sheet1!C$15))","v":{"v":32.85,"d":"$32.85"}},null,"Yes",20,20]
[null,"PoER-01",null,"1 Channel 10/100M PoE Extender (Repeater), IEEE802.3at",{"v":24,"d":"$24.00"},null,"Yes",{"$f":"SUM((E10*1.095)+((E10*1.07)*Sheet1!C$15))","v":{"v":26.28,"d":"$26.28"}},null,"Yes",50,10]
[null,"PoER-02",null,"1 to 2 Channels 10/100M PoE Extender (Repeater), IEEE802.3at",{"v":27,"d":"$27.00"},null,"Yes",{"$f":"SUM((E11*1.095)+((E11*1.07)*Sheet1!C$15))","v":{"v":29.564999999999998,"d":"$29.57"}},null,"Yes",50,10]
[null,"EOC-01",null,"Set-Transmitter + Receiver, \nEthernet Over Standard Coax Cable Up To 150 Meter",{"v":8,"d":"$8.00"},null,"Yes",{"$f":"SUM((E12*1.095)+((E12*1.07)*Sheet1!C$15))","v":{"v":8.76,"d":"$8.76"}},null,"Yes",80,10]
[null,"DCoE-01",null,"Set-Transmitter/Receiver, \nTransmit DC Power and Ethernet Over Ethernet Cable,\n50 Meter Working Distance, Not PoE",{"v":3.5,"d":"$3.50"},null,"Yes",{"$f":"SUM((E13*1.095)+((E13*1.07)*Sheet1!C$15))","v":{"v":3.8325,"d":"$3.83"}},null,"Yes",56,7]

{"sheet":"Accessories","index":9,"n_rows":84,"n_cols":15,"rows_kept":84,"merged":[[0,3,0,14],[1,3,1,5],[1,6,1,14],[2,2,2,14],[4,2,4,14],[8,1,8,14],[14,1,14,14],[26,2,26,14],[52,2,52,14],[68,2,68,14],[79,2,79,14]]}
[]
[null,null,"Accessories"]
[]
[null,"קטגוריה","Category","Free text","Model","Description"," China Price","Old Price","China Availability","Netherlands Price","Old Price","Netherland Availability","Unit Per Carton","MOQ","Remarks"]
[null,null,"Lens"]
[null,null,"Lens",null,"02812DCMP-3-V2","Vari-Focal DC Auto Iris 2.8-12mm,3 Mega-Pixel lens",{"v":15,"d":"$15.00"},null,"Yes",{"$f":"SUM((G6*1.095)+((G6*1.07)*Sheet1!C$8))","v":{"v":16.425,"d":"$16.43"}},null,"Yes",50,10]
[null,null,"Lens",null,"0550DCMP-8","Vari-Focal DC Auto Iris 5-50mm, 8 Mega-Pixel lens",{"v":44,"d":"$44.00"},null,"Yes","N/A",null,"only from CH",20,1]
[null,null,"Lens",null,"03610DCMP-6 ","Vari-Focal F1.5, CS mount, 1/1.8\" P-IRIS 3.6mm-10mm, 6 Mega Pixel lens",{"v":31,"d":"$31.00"},null,"Yes","N/A",null,"only from CH",10,10]
[null,"Monitors"]
[null,null,"Monitor",null,"TM-434In1-8","4.3 inch AHD/TVI/CVI/CVBS tester with RS485 up to 8MP with EU&US socket",{"v":60,"d":"$60.00"},null,"Yes",{"$f":"SUM((G10*1.095)+((G10*1.07)*Sheet1!C$7))","v":{"v":74.688,"d":"$74.69"}},null,"Yes",10,10]
[null,null,"Monitor",null,"TM-54In1-2","5 inch  AHD/TVI/CVI/CVBS tester with RS485 up to 2MP ",{"v":60,"d":"$60.00"},null,"Yes",{"$f":"SUM((G11*1.095)+((G11*1.07)*Sheet1!C$7))","v":{"v":74.688,"d":"$74.69"}},null,"Yes",10,10]
[null,null,"Monitor",null,"TM-54In1-8","5 inch AHD/TVI/CVI/CVBS tester with RS485. Network and Coax testers. Up to 8MP with EU&US socket",{"v":95,"d":"$95.00"},null,"Yes",{"$f":"SUM((G12*1.095)+((G12*1.07)*Sheet1!C$7))","v":{"v":118.256,"d":"$118.26"}},null,"Yes",10,1]
[null,null,"Monitor",null,"PR-IPS7-W","7\" standalone LCD Monitor with IPS panel, HDMI&AV&VGA,White shell.",{"v":45,"d":"$45.00"},null,"Yes",{"$f":"SUM((G13*1.095)+((G13*1.07)*Sheet1!C$7))","v":{"v":56.016,"d":"$56.02"}},null,"Yes",10,10]
[null,null,"Monitor",null,"PR-IPS10-W","10.1\" standalone LCD Monitor with IPS panel , HDMI&AV&VGA,White shell.",{"v":60,"d":"$60.00"},null,"Yes",{"$f":"SUM((G14*1.095)+((G14*1.07)*Sheet1!C$7))","v":{"v":74.688,"d":"$74.69"}},null,"Yes",10,10]
[null,"Power Supply"]
[null,null,"Power Supply",null,"PR-12V1A-A","12V 1A Power Supply ",{"v":1.7,"d":"$1.70"},null,"Yes",{"$f":"SUM((G16*1.095)+((G16*1.07)*Sheet1!C$6))","v":{"v":1.8615,"d":"$1.86"}},null,"Yes",100,100]
[null,null,"Power Supply",null,"PR-12V3A","12V 3A Power Supply ",{"v":4.1,"d":"$4.10"},null,"Yes",{"$f":"SUM((G17*1.095)+((G17*1.07)*Sheet1!C$6))","v":{"v":4.4895,"d":"$4.49"}},null,"Yes",60,60]
[null,null,"Power Supply",null,"PR-12V5A","12V 5A Power Supply ",{"v":6.3,"d":"$6.30"},null,"Yes",{"$f":"SUM((G18*1.095)+((G18*1.07)*Sheet1!C$6))","v":{"v":6.898499999999999,"d":"$6.90"}},null,"Yes",36,36]
[null,null,"Power Supply",null,"PR-12V5A-4","12V 5A Power Supply with 4 splitter",{"v":7,"d":"$7.00"},null,"Yes",{"$f":"SUM((G19*1.095)+((G19*1.07)*Sheet1!C$6))","v":{"v":7.665,"d":"$7.67"}},null,"Yes",36,36]
[null,null,"Power Supply",null,"PR-12V5A-4T","Power supply, DC 12V5A with 4 channel terminal block",{"v":7.5,"d":"$7.50"},null,"Yes",{"$f":"SUM((G20*1.095)+((G20*1.07)*Sheet1!C$6))","v":{"v":8.2125,"d":"$8.21"}},null,"Yes",20,20]
[null,null,"Power Supply",null,"PR-5A8CH+","8CH, 12V/5A Profesional power supply with socket",{"v":23.5,"d":"$23.50"},null,"Yes",{"$f":"SUM((G21*1.095)+((G21*1.07)*Sheet1!C$6))","v":{"v":25.732499999999998,"d":"$25.73"}},null,"Yes",10,10]
[null,null,"Power Supply",null,"PR-5A8CH-B","8CH, 12V/5A Proffesional power supply with room for backup battery with socket",{"v":24,"d":"$24.00"},null,"Yes",{"$f":"SUM((G22*1.095)+((G22*1.07)*Sheet1!C$6))","v":{"v":26.28,"d":"$26.28"}},null,"Yes",10,10]
[null,null,"Power Supply",null,"PR-10A9CH+","9CH, 12V/10A Profesional power supply with socket",{"v":33,"d":"$33.00"},null,"Yes",{"$f":"SUM((G23*1.095)+((G23*1.07)*Sheet1!C$6))","v":{"v":36.135,"d":"$36.14"}},null,"Yes",10,10]
[null,null,"Power Supply",null,"PR-10A9CH-B","9CH, 12V/10A Proffesional power supply with room for backup battery with socket",{"v":39,"d":"$39.00"},null,"Yes",{"$f":"SUM((G24*1.095)+((G24*1.07)*Sheet1!C$6))","v":{"v":42.705,"d":"$42.71"}},null,"Yes",5,5]
[null,null,"Power Supply",null,"PR-12A16CH+","16CH,12V/12A Profesional power supply with socket",{"v":46,"d":"$46.00"},null,"Yes",{"$f":"SUM((G25*1.095)+((G25*1.07)*Sheet1!C$6))","v":{"v":50.37,"d":"$50.37"}},null,"Yes",10,10]
[null,null,"Power Supply",null,"PR-20A16CH(1U)","16CH,12V/20A Proffesional power supply,1u case,with  socket",{"v":66,"d":"$66.00"},null,"Yes",{"$f":"SUM((G26*1.095)+((G26*1.07)*Sheet1!C$6))","v":{"v":72.27,"d":"$72.27"}},null,"Yes",3,3]
[null,null,"bracket and Junction box"]
[null,"אביזרים","bracket and Junction box",null,"PR-JB14IP66","Bracket- Junction box for I6-/DI-VF, IP66",{"v":9.2,"d":"$9.20"},null,"Yes",{"$f":"SUM((G28*1.095)+((G28*1.07)*Sheet1!C$11))","v":{"v":10.339788,"d":"$10.34"}},null,"Yes",20,20]
[null,"אביזרים","bracket and Junction box",null,"PR-JB14IP66-G","Bracket- Junction box for I6-/DI-VF, IP66,Grey",{"v":9.2,"d":"$9.20"},null,"Yes",{"$f":"SUM((G29*1.095)+((G29*1.07)*Sheet1!C$11))","v":{"v":10.339788,"d":"$10.34"}},null,"Yes",20,20]
[null,null,"bracket and Junction box",null,"PR-JB14IP64","Bracket- Junction box for I6-/DI-VF, IP64",{"v":5,"d":"$5.00"},null,"Yes",{"$f":"SUM((G30*1.095)+((G30*1.07)*Sheet1!C$11))","v":{"v":5.61945,"d":"$5.62"}},null,"Yes",30,30]
[null,"אביזרים","bracket and Junction box",null,"PR-JB12IP66","Bracket- Junction box for I4-/I2-/DI-Fix, IP66",{"v":8.2,"d":"$8.20"},null,"Yes",{"$f":"SUM((G31*1.095)+((G31*1.07)*Sheet1!C$11))","v":{"v":9.215898,"d":"$9.22"}},null,"Yes",20,20]
[null,"אביזרים","bracket and Junction box",null,"PR-JB12IP66-G","Bracket- Junction box for I4-/I2-/DI-Fix, IP66,Grey",{"v":8.2,"d":"$8.20"},null,"Yes",{"$f":"SUM((G32*1.095)+((G32*1.07)*Sheet1!C$11))","v":{"v":9.215898,"d":"$9.22"}},null,"Yes",20,20]
[null,null,"bracket and Junction box",null,"PR-JB12IP64","Bracket- Junction box for I4-/I2-/DI-Fix, IP64",{"v":4.4,"d":"$4.40"},null,"Yes",{"$f":"SUM((G33*1.095)+((G33*1.07)*Sheet1!C$11))","v":{"v":4.9451160000000005,"d":"$4.95"}},null,"Yes",20,20]
[null,"אביזרים","bracket and Junction box",null,"PR-WB14","Bracket- L shape bracket with PR-JB14IP66 for I6-/DI-VF/DAI-VF, IP66",{"v":11,"d":"$11.00"},null,"Yes",{"$f":"SUM((G34*1.095)+((G34*1.07)*Sheet1!C$11))","v":{"v":12.36279,"d":"$12.36"}},null,"Yes",12,12]
[null,"אביזרים","bracket and Junction box",null,"PR-WB12","Bracket- L shape bracket with PR-JB12IP66 for I4-/I2-/DI-Fix/DAI-Fix, IP66   ",{"v":11,"d":"$11.00"},null,"Yes",{"$f":"SUM((G35*1.095)+((G35*1.07)*Sheet1!C$11))","v":{"v":12.36279,"d":"$12.36"}},null,"Yes",12,12]
[null,"אביזרים","bracket and Junction box",null,"PR-WB-A","Bracket- Wall braket for DI-VF, DI-Fix, DAI-Fix, DMA",{"v":8.8,"d":"$8.80"},null,"Yes",{"$f":"SUM((G36*1.095)+((G36*1.07)*Sheet1!C$11))","v":{"v":9.890232000000001,"d":"$9.89"}},null,"Yes",20,20]
[null,"אביזרים","bracket and Junction box",null,"PR-WB-A-G","Bracket- Wall bracket for DI-VF, DI-Fix, DAI-Fix, DMA.Grey",{"v":8.8,"d":"$8.80"},null,"Yes",{"$f":"SUM((G37*1.095)+((G37*1.07)*Sheet1!C$11))","v":{"v":9.890232000000001,"d":"$9.89"}},null,"Yes",20,20]
[null,"אביזרים","bracket and Junction box",null,"PR-CB14","Bracket- Straight bracket with PR-JB14IP66 for I6-/DI-VF/DAI-VF, IP66",{"v":12,"d":"$12.00"},null,"Yes",{"$f":"SUM((G38*1.095)+((G38*1.07)*Sheet1!C$11))","v":{"v":13.48668,"d":"$13.49"}},null,"Yes",12,12]
[null,"אביזרים","bracket and Junction box",null,{"$f":"'[2]Full Pricelist'!$E$269","v":"PR-CB12"},"Bracket- Straight bracket with PR-JB12IP66 for I4-/I2-/DI-Fix/DAI-Fix, IP66   ",{"v":12,"d":"$12.00"},null,"Yes",{"$f":"SUM((G39*1.095)+((G39*1.07)*Sheet1!C$11))","v":{"v":13.48668,"d":"$13.49"}},null,"Yes",12,12]
[null,"אביזרים למצלמות ממונעות","bracket and Junction box",null,"PR-ICB21","Bracket- In-celling mount bracket for  DAI-fix",{"v":11,"d":"$11.00"},null,"Yes",{"$f":"SUM((G40*1.095)+((G40*1.07)*Sheet1!C$11))","v":{"v":12.36279,"d":"$12.36"}},null,"Yes",8,8]
[null,"אביזרים למצלמות ממונעות","bracket and Junction box",null,"PR-ICB23","Bracket- In-celling mount bracket for  DAI-VF",{"v":12,"d":"$12.00"},null,"Yes",{"$f":"SUM((G41*1.095)+((G41*1.07)*Sheet1!C$11))","v":{"v":13.48668,"d":"$13.49"}},null,"Yes",8,8]
[null,"אביזרים למצלמות ממונעות","bracket and Junction box",null,"PR-WB50","Bracket- Wall bracket for FEI-",{"v":12,"d":"$12.00"},null,"Yes",{"$f":"SUM((G42*1.095)+((G42*1.07)*Sheet1!C$11))","v":{"v":13.48668,"d":"$13.49"}},null,"Yes",12,12]
[null,"אביזרים למצלמות ממונעות","bracket and Junction box",null,"PR-CB50","Bracket- Celling bracket for FEI-",{"v":12,"d":"$12.00"},null,"Yes",{"$f":"SUM((G43*1.095)+((G43*1.07)*Sheet1!C$11))","v":{"v":13.48668,"d":"$13.49"}},null,"Yes",12,12]
[null,"אביזרים למצלמות ממונעות","bracket and Junction box",null,"PR-B10BJB","Junction Box for DMA fix Dome camera (IP Series)",{"v":4.6,"d":"$4.60"},null,"Yes",{"$f":"SUM((G44*1.095)+((G44*1.07)*Sheet1!C$11))","v":{"v":5.169894,"d":"$5.17"}},null,"Yes",20,20]
[null,"אביזרים למצלמות ממונעות","bracket and Junction box",null,"PR-B10EX","Extantion Bracket of 10cm for Junction Box",{"v":2.2,"d":"$2.20"},null,"Yes",{"$f":"SUM((G45*1.095)+((G45*1.07)*Sheet1!C$11))","v":{"v":2.4725580000000003,"d":"$2.47"}},null,"Yes",9,9]
[null,null,"bracket and Junction box",null,"PR-B20EX","extension Bracket of 20cm",{"v":3.8,"d":"$3.80"},null,"Yes",{"$f":"SUM((G46*1.095)+((G46*1.07)*Sheet1!C$11))","v":{"v":4.270782,"d":"$4.27"}},null,"Mar",10,10,"New model"]
[null,"אביזרים","bracket and Junction box",null,"PR-B42PJB","Smal Plastic junction Box for AHD camera . White color",{"v":1.5,"d":"$1.50"},null,"Yes",{"$f":"SUM((G47*1.095)+((G47*1.07)*Sheet1!C$11))","v":{"v":1.685835,"d":"$1.69"}},null,"Yes",25,25]
[null,"אביזרים","bracket and Junction box",null,"PR-B50PB","Pole mount bracket for PR-JB12xxx, PR-JB14xxx",{"v":12.5,"d":"$12.50"},null,"Yes",{"$f":"SUM((G48*1.095)+((G48*1.07)*Sheet1!C$11))","v":{"v":14.048625,"d":"$14.05"}},null,"Yes",10,10]
[null,"אביזרים","bracket and Junction box",null,"PR-B50ECB","External Corner bracket for PR-JB12xxx, PR-JB14xxx",{"v":12,"d":"$12.00"},null,"Yes",{"$f":"SUM((G49*1.095)+((G49*1.07)*Sheet1!C$11))","v":{"v":13.48668,"d":"$13.49"}},null,"Yes",6,6]
[null,"אביזרים","bracket and Junction box",null,"PR-B50JB","Junction Box for Fisheye IP camera",{"v":6,"d":"$6.00"},null,"Yes",{"$f":"SUM((G50*1.095)+((G50*1.07)*Sheet1!C$11))","v":{"v":6.74334,"d":"$6.74"}},null,"Yes",12,12]
[null,null,"bracket and Junction box",null,"PR-JB1-DB","junction box with roof  for Doorbell",{"v":4.5,"d":"$4.50"},null,"Dec",{"$f":"SUM((G51*1.095)+((G51*1.07)*Sheet1!C$11))","v":{"v":5.057505,"d":"$5.06"}},null,"Jan",20,20,"New model"]
[null,null,"bracket and Junction box",null,"PR-WB15-DB","15 degree bracket for Doorbell",{"v":2.2,"d":"$2.20"},null,"Dec",{"$f":"SUM((G52*1.095)+((G52*1.07)*Sheet1!C$11))","v":{"v":2.4725580000000003,"d":"$2.47"}},null,"Jan",20,20,"New model"]
[null,null,"CONNECTORS"]
[null,"אביזרים","CONNECTORS",null,"PR-C01","BNC Male -RCA female Connector",{"v":0.16,"d":"$0.16"},null,"Yes",{"$f":"SUM((G54*1.095)+((G54*1.07)*Sheet1!C$9))","v":{"v":0.1752,"d":"$0.18"}},null,"Yes",1000,100]
[null,"אביזרים","CONNECTORS",null,"PR-C02","T Connector - BNC Female to 2 BNC female",{"v":0.22,"d":"$0.22"},null,"Yes","N/A",null,"only from CH",1000,100]
[null,"אביזרים","CONNECTORS",null,"PR-C03","T Connector - BNC Male to 2 BNC female",{"v":0.22,"d":"$0.22"},null,"Yes",{"$f":"SUM((G56*1.095)+((G56*1.07)*Sheet1!C$9))","v":{"v":0.2409,"d":"$0.24"}},null,"Yes",1000,100]
[null,"אביזרים","CONNECTORS",null,"PR-C04","BNC female to RCA male",{"v":0.2,"d":"$0.20"},null,"Yes",{"$f":"SUM((G57*1.095)+((G57*1.07)*Sheet1!C$9))","v":{"v":0.219,"d":"$0.22"}},null,"Yes",1000,100]
[null,"אביזרים","CONNECTORS",null,"PR-C07","BNC Female to BNC Female (BNC Cable Exstender)",{"v":0.15,"d":"$0.15"},null,"Yes",{"$f":"SUM((G58*1.095)+((G58*1.07)*Sheet1!C$9))","v":{"v":0.16424999999999998,"d":"$0.16"}},null,"Yes",1000,100]
[null,"אביזרים","CONNECTORS",null,"PR-C08","DC jack male",{"v":0.15,"d":"$0.15"},null,"Yes",{"$f":"SUM((G59*1.095)+((G59*1.07)*Sheet1!C$9))","v":{"v":0.16424999999999998,"d":"$0.16"}},null,"Yes",1000,100]
[null,"אביזרים","CONNECTORS",null,"PR-C09","DC jack female",{"v":0.15,"d":"$0.15"},null,"Yes",{"$f":"SUM((G60*1.095)+((G60*1.07)*Sheet1!C$9))","v":{"v":0.16424999999999998,"d":"$0.16"}},null,"Yes",1000,100]
[null,"אביזרים","CONNECTORS",null,"PR-C10","DC cable Male (25cm)",{"v":0.15,"d":"$0.15"},null,"Yes",{"$f":"SUM((G61*1.095)+((G61*1.07)*Sheet1!C$9))","v":{"v":0.16424999999999998,"d":"$0.16"}},null,"Yes",1000,100]
[null,"אביזרים","CONNECTORS",null,"PR-C11","DC cable female (15cm)",{"v":0.15,"d":"$0.15"},null,"Yes","N/A",null,"only from CH",1000,100]
[null,"אביזרים","CONNECTORS",null,"PR-C12","Male BNC angular type connector (screwing)",{"v":0.15,"d":"$0.15"},null,"Yes",{"$f":"SUM((G63*1.095)+((G63*1.07)*Sheet1!C$9))","v":{"v":0.16424999999999998,"d":"$0.16"}},null,"Yes",1000,100]
[null,"אביזרים","CONNECTORS",null,"PR-C13","BNC Plug (3  pc's in set -use with ratchet BNC carmping tool",{"v":0.15,"d":"$0.15"},null,"Yes",{"$f":"SUM((G64*1.095)+((G64*1.07)*Sheet1!C$9))","v":{"v":0.16424999999999998,"d":"$0.16"}},null,"Yes",1000,100]
[null,"אביזרים","CONNECTORS",null,"PR-C14","4CH DC splitter(1 female to 4 male) cable",{"v":0.6,"d":"$0.60"},null,"Yes",{"$f":"SUM((G65*1.095)+((G65*1.07)*Sheet1!C$9))","v":{"v":0.6569999999999999,"d":"$0.66"}},null,"Yes",50,50]
[null,"אביזרים","CONNECTORS",null,"PTR-101V-HD-8","1 CH HD Passive Video Balun Set, 8MP",{"v":1.6,"d":"$1.60"},null,"Yes",{"$f":"SUM((G66*1.095)+((G66*1.07)*Sheet1!C$9))","v":{"v":1.752,"d":"$1.75"}},null,"Yes",200,50]
[null,null,"CONNECTORS",null,"PTR-102VP-HD-8","1 CH Passive Balun HD Video And Power - Set,up to 8MP",{"v":4.5,"d":"$4.50"},null,"Yes",{"$f":"SUM((G67*1.095)+((G67*1.07)*Sheet1!C$9))","v":{"v":4.9275,"d":"$4.93"}},null,"Yes",80,10]
[null,"אביזרים","CONNECTORS",null,"PTR-103VHP-HD","1-ch HD passive video & power balun, 24/36VDC Input. converts to 12VDC at camera side.",{"v":7,"d":"$7.00"},null,"Yes",{"$f":"SUM((G68*1.095)+((G68*1.07)*Sheet1!C$9))","v":{"v":7.665,"d":"$7.67"}},null,"Yes",80,10]
[null,null,"HDMI"]
[null,"HDMI אביזרים","HDMI",null,"PR-VGAtoBNC","Input: 1CH VGA  Output:1CH VGA or 1CH AV convertor up to  1920*1200",{"v":13,"d":"$13.00"},null,"Yes","N/A",null,"only from CH",40,1]
[null,"HDMI אביזרים","HDMI",null,"PR-HDMItoVGA","HDMI to VGA converter",{"v":3.2,"d":"$3.20"},null,"Yes",{"$f":"SUM((G71*1.095)+((G71*1.07)*Sheet1!C$12))","v":{"v":3.504,"d":"$3.50"}},null,"Yes",100,10]
[null,"HDMI אביזרים","HDMI",null,"PR-HDEx(4K)","4K HDMI Repeater (Up to 50M)",{"v":3.5,"d":"$3.50"},null,"Yes",{"$f":"SUM((G72*1.095)+((G72*1.07)*Sheet1!C$12))","v":{"v":3.8325,"d":"$3.83"}},null,"Yes",96,12]
[null,"HDMI אביזרים","HDMI",null,"PR-SP102(4K)","1 in 2 out 4K HDMI Splitter plastic, black",{"v":5.5,"d":"$5.50"},null,"Yes",{"$f":"SUM((G73*1.095)+((G73*1.07)*Sheet1!C$12))","v":{"v":6.0225,"d":"$6.02"}},null,"Yes",64,8]
[null,"HDMI אביזרים","HDMI",null,"PR-SP104(4K)","1 in 4 out 4K HDMI Splitter, support 3D, with US socket",{"v":10.5,"d":"$10.50"},null,"Yes",{"$f":"SUM((G74*1.095)+((G74*1.07)*Sheet1!C$12))","v":{"v":11.4975,"d":"$11.50"}},null,"Yes",10,10]
[null,"HDMI אביזרים","HDMI",null,"PR-SW301(4K)","3 in 1 out HDMI Switch 4k(3840*2160), plastic",{"v":5,"d":"$5.00"},null,"Yes",{"$f":"SUM((G75*1.095)+((G75*1.07)*Sheet1!C$12))","v":{"v":5.475,"d":"$5.48"}},null,"Yes",40,5]
[null,"HDMI אביזרים","HDMI",null,"PR-4IN1-Con","Converter- AHD/TVI/CVI/CVBS  to HDMI/VGA/AV , support up to 5MP",{"v":32,"d":"$32.00"},null,"Yes",{"$f":"SUM((G76*1.095)+((G76*1.07)*Sheet1!C$12))","v":{"v":35.04,"d":"$35.04"}},null,"Yes",10,10]
[null,"HDMI אביזרים","HDMI",null,"PR-HDoNet+","HDMI over network, extend 40-60 meters",{"v":23,"d":"$23.00"},null,"Yes",{"$f":"SUM((G77*1.095)+((G77*1.07)*Sheet1!C$12))","v":{"v":25.185,"d":"$25.19"}},null,"Yes",10,10]
[null,"HDMI אביזרים","HDMI",null,"PR-HDoNet-E","HDMI over network, extend 10-20meters",{"v":8,"d":"$8.00"},null,"Yes",{"$f":"SUM((G78*1.095)+((G78*1.07)*Sheet1!C$12))","v":{"v":8.76,"d":"$8.76"}},null,"Yes",48,12]
[null,"HDMI אביזרים","HDMI",null,"PR-HDKVMoNet","HDMI over cat5/5e/6 kvm +2USB with IR",{"v":74,"d":"$74.00"},null,"Yes",{"$f":"SUM((G79*1.095)+((G79*1.07)*Sheet1!C$12))","v":{"v":81.03,"d":"$81.03"}},null,"Yes",6,6]
[null,null,"Others"]
[null,null,"Speaker",null,"PR-HS30W","30W 12V-24V active horn speaker with 3.5mm stereo male sound input, Vol control,",{"v":46,"d":"$46.00"},null,"Yes",{"$f":"SUM((G81*1.095)+((G81*1.07)*Sheet1!C$3))","v":{"v":50.37,"d":"$50.37"}},null,"Yes",6,6]
[null,null,"Video Server",null,"DVS-IP5-4","video server, H.265 4MP AHD, PoE, audio, alarm, SD, RS-485",{"v":60,"d":"$60.00"},null,"Yes",{"$f":"SUM((G82*1.095)+((G82*1.07)*Sheet1!C$3))","v":{"v":65.7,"d":"$65.70"}},null,"Yes",12,6]
[null,null,"Alarm Unit",null,"I/O-1606","USB Alarm Expansion Box, 16CH alarm input, 6CH alarm output",{"v":14,"d":"$14.00"},null,"Yes",{"$f":"SUM((G83*1.095)+((G83*1.07)*Sheet1!C$3))","v":{"v":15.33,"d":"$15.33"}},null,"Yes",12,6]
[null,null,"Chime",null,"PR-Chime","Internal chime for Doorbell",{"v":14,"d":"$14.00"},null,"Yes",{"$f":"SUM((G84*1.095)+((G84*1.07)*Sheet1!C$3))","v":{"v":15.33,"d":"$15.33"}},null,"Dec",24,12,"New model"]

{"sheet":"מערכת SHOB ","index":10,"n_rows":29,"n_cols":10,"rows_kept":29,"hidden":true,"merged":[[0,1,3,2],[0,3,3,8],[4,1,27,1],[5,3,5,7],[6,9,7,10],[7,3,15,3],[9,9,9,10],[10,9,10,10],[11,9,11,10],[12,9,12,10],[13,9,13,10],[14,9,14,10],[15,9,15,10],[16,9,16,10],[28,3,28,7]]}
[null,"כותרת שו\"ב החדשה"]
[]
[]
[]
[]
[{"$nulls":3},"מחירון שרת "]
[{"$nulls":3},"פריט","מכיל","מחיר","כמות","סה\"כ",null," חויית משתמש 2020"]
[{"$nulls":3},"ערכת בסיס","16 מצלמות",{"v":8750,"d":"₪ 8,750.00"},null,{"$f":"F8*G8","v":{"v":0,"d":"₪ 0.00"}}]
[{"$nulls":4},"32 גלאים"]
[{"$nulls":4},"4 דלתות",{"$nulls":4},"ממשק משתמש עשיר וידידותי"]
[{"$nulls":4},"ממשק מפות",{"$nulls":4},"הגדרת תרחישים פשוטה ויעילה"]
[{"$nulls":4},"ממשק תרחישים",{"$nulls":4},"הפקת דו\"ח אביזרים תקולים"]
[{"$nulls":4},"יומן אירועים",{"$nulls":4},"ממשק לכל המערכות הקיימות בשוק"]
[{"$nulls":4},"מודולי שליטה",{"$nulls":4},"ממשק מפות ויומן אירועים חי ואינטרקטיבי"]
[{"$nulls":4},"2 הרשאות לעמודת עבודה",{"$nulls":4},"פתרונות ייעודיים לפי דרישה"]
[{"$nulls":4},"חומרה עליה מותקנת השו\"ב - לא נועד לצפית וידאו",{"$nulls":4},"צוות פיתוח ישראלי זמין"]
[{"$nulls":3},"הרשאה לעמדת עבודה נוספת","תוכנה בלבד",{"v":1750,"d":"₪ 1,750.00"},null,{"$f":"F17*G17","v":{"v":0,"d":"₪ 0.00"}}]
[{"$nulls":3},"הוספת קבוצת 8 דלתות ","הרשאה",{"v":1750,"d":"₪ 1,750.00"},null,{"$f":"F18*G18","v":{"v":0,"d":"₪ 0.00"}}]
[{"$nulls":3},"הוספת קבוצת 16 מצלמות ","הרשאה",{"v":1750,"d":"₪ 1,750.00"},null,{"v":0,"d":"₪ 0.00"}]
[{"$nulls":3},"הוספת קבוצת 32 גלאים","הרשאה",{"v":1750,"d":"₪ 1,750.00"},null,{"v":0,"d":"₪ 0.00"}]
[{"$nulls":3},"מודול לשליחת הודעות SMS","כולל מודם, לא כולל SIM",{"v":2500,"d":"₪ 2,500.00"},null,{"v":0,"d":"₪ 0.00"}]
[{"$nulls":3},"התקנת הספק","עלות של מערך החבילה 10% לא פחות מ 4000",null,null,{"v":0,"d":"₪ 0.00"}]
[{"$nulls":3},"בניית מסך גרפי (מפה)","עלות בניית מפה אחת",{"v":850,"d":"₪ 850.00"},null,{"v":0,"d":"₪ 0.00"}]
[{"$nulls":3},"שרות שנתי","החל מהשנה שניה",{"v":0.15,"d":"15%"},null,{"$f":"SUM(H8,H17:H23)*F24","v":{"v":0,"d":"₪ 0.00"}}]
[{"$nulls":3},"עלות מפתח","יום עבודה",{"v":1750,"d":"₪ 1,750.00"},null,{"v":0,"d":"₪ 0.00"}]
[{"$nulls":3},"סה\"כ עלות ללא שרות שנתי",{"$nulls":3},{"$f":"SUM(H8,H17:H23)","v":{"v":0,"d":"₪ 0.00"}}]
[]
[]
[{"$nulls":3},"לפרטים נוספים והצעת מחיר: שגיא 09-7601346 שלוחה 217 / 050-5738835"]

{"sheet":"VMS Hardware","index":11,"n_rows":12,"n_cols":14,"rows_kept":12,"merged":[[0,2,0,12],[1,2,1,4],[1,5,1,12],[2,1,2,12],[4,4,4,13]]}
[]
[null,"VMS Hardware"]
[]
[null,"Category","Model","Free text","Description","China Price","Old Price","China Availability","Netherlands Price","Old Price","Netherland Availability","Unit Per Carton","MOQ","Remarks"]
[null,"License","OC-CH",null,"Basic system- 32 ch free \n33-150ch- 18$ per channel\n151-300ch- 15$ per channel\n301ch and up- 12$ per channel"]
[null,"Management Server- S","OC-MSCL-S(DT)-V2",null,"Ossia VMS Management Server include 256 Licenses/\nClient for OC-MS-XL(1U)  /OC-MSCL-S(DT) servers",{"v":375,"d":"$375.000"},null,"Yes",{"$f":"SUM((F6*1.095)+((F6*1.07)*Sheet1!C$14))","v":{"v":410.625,"d":"$410.63"}},null,"Yes",6,1]
[null,"Management Server- M","OC-MS-M(1U)",null,"Ossia VMS Management Server include 512 Licenses ",{"v":1300,"d":"$1,300.000"},null,"Yes",{"$f":"SUM((F7*1.095)+((F7*1.07)*Sheet1!C$14))","v":{"v":1423.5,"d":"$1,423.50"}},null,"Yes",6,1]
[null,"Management Server- XL","OC-MS-XL(1U)-V2",null,"Ossia VMS up to 10,000ch Management Server include 512ch Licenses",{"v":2500,"d":"$2,500.000"},null,"Yes",{"$f":"SUM((F8*1.095)+((F8*1.07)*Sheet1!C$14))","v":{"v":2737.5,"d":"$2,737.50"}},null,"Yes",1,1]
[null,"Recording Server","OC-RS-16(3U)",null,"Ossia VMS 16HDD Recording Server with Raid and 2 PSU",{"v":4000,"d":"$4,000.000"},null,"by request","N/A",null,"only from CH",1,1]
[null,"Transfer Server","OC-TS(1U)",null,"Ossia VMS transfer Server",{"v":2100,"d":"$2,100.000"},null,"by request","N/A",null,"only from CH",1,1,"EOL- please contact us when needed"]
[null,"Decoder","DEC-0104(1U)",null,"IP Decoder, 1*HDMI input 1080P, 4*HDMI output (2*4K+ 2*1080P),1U case",{"v":440,"d":"$440.000"},null,"Yes",{"$f":"SUM((F11*1.095)+((F11*1.07)*Sheet1!C$14))","v":{"v":481.8,"d":"$481.80"}},null,"Yes",5,1]
[null,"Joystick","IP-Key02-V2",null,"Keyboard controller for PTZ and Ossia VMS",{"v":225,"d":"$225.000"},null,"Oct","N/A",null,"only from CH",1,1,"New model"]

{"sheet":"Maitainance file","index":12,"n_rows":20,"n_cols":42,"rows_kept":20,"merged":[[0,0,0,6],[0,10,0,16],[0,20,0,26],[0,30,0,36]]}
["IPC",{"$nulls":9},"HDC",{"$nulls":9},"NVR",{"$nulls":9},"DVR",{"$nulls":10},"Clean"]
["Series","Resolution","Housing","WDR","Lens type","Special features","Analytic",{"$nulls":3},"Resolution","Housing","Lens type",null,null,"Speical feature",{"$nulls":4},"No. Of Channels","Max Resolution","HDD","Dry Contact",null,"Special Feature",{"$nulls":4},"Number of Channels","No. of IP Channels","HD Max Resolution","HD Max Real-Time Resolution","HDD","Audio","Dry Contact",{"$nulls":4},"Model search"]
["F","H","I","J","K","P","Q",{"$nulls":3},"G","H","I",null,null,"N",{"$nulls":4},"F","G","K","N",null,"O",{"$nulls":4},"F","G","H","I","L","N","P"]
["Series","Resolution","Housing","WDR","Lens type","Special features","Analytic",{"$nulls":3},"Resolution","Housing","Lens type",null,null,"Speical feature",{"$nulls":4},"No. Of Channels","Max Resolution","HDD","Dry Contact",null,"Special Feature",{"$nulls":4},"Number of Channels","No. of IP Channels","HD Max Resolution","HD Max Real-Time Resolution","HDD","Audio","Dry Contact"]
["Eye-Sight","2MP","Bullet","DWDR","Fixed","I/O","Camera Tampering ",{"$nulls":3},"2MP","Bullet","Fixed",null,null,"Anti-vandal",{"$nulls":4},4,"5MP","1 of 6TB Max","Based on IPC Only",null,"None PoE",{"$nulls":4},4,"up to 2","2MP Lite","1MP","1 of 6TB Max","Based on IPC Only","Based on IPC Only"]
["S-Sight","4MP","Turret/Dome","True WDR","Vari-Focal","Audio In","Standard- Line Crossing ",{"$nulls":3},"3K","Turret/Dome","Vari-Focal",null,null,"color at night",{"$nulls":4},8,"8MP","1 of 8TB Max","In- 8+IPC Out- 4+IPC",null,"with PoE",{"$nulls":4},8,"up to 4","5MP Lite","2MP Lite","1 of 8TB Max","IN- 1+IPC Out- 1","IN- 4+IPC Out- 1"]
["Special","6MP","Fish-Eye",null,"Motorized Vari-Focal","Audio Out","Standard- Sterile Area",{"$nulls":3},"5MP","Box","Motorized Vari-Focal",null,null,"Support WDR",{"$nulls":4},16,"12MP","2 of 8TB Max","In- 4+IPC Out- 1+IPC",null,"RAID",{"$nulls":4},16,"up to 6","8MP Lite","2MP","2 of 8TB Max","IN- 4+IPC Out- 1+IPC","IN- 4+IPC Out- 1+IPC"]
["Smart-Sight","8MP","Box",null,"None","SD Card","DDA- Line Crossing",{"$nulls":3},"8MP","Hidden","None",null,null,"D-WDR",{"$nulls":4},32,null,"8 of 8TB Max","In- 16+IPC Out- 1+IPC",null,"Face",{"$nulls":4},32,"up to 8","8MP","4MP Lite","4 of 8TB max","IN- 8+IPC Out- 1","IN- 8+IPC Out- 2+IPC"]
["Rainbow","5MP","Hidden",null,null,"Built-in Mic","DDA- Sterile Area",{"$nulls":4},"Dome Anti-Vandal",{"$nulls":3},"HLC",{"$nulls":4},64,null,"16 of 8TB Max",null,null,"DDA Analytic",{"$nulls":5},"up to 10",null,"5MP Lite","8 of 8TB Max","IN- 8+IPC Out- 1+IPC","IN- 16+IPC Out- 4+IPC"]
[null,null,"Dome Anti-Vandal",null,null,"Built-in Speaker","DDA- Object Counting (line)",{"$nulls":8},"Built-in Mic",{"$nulls":4},128,{"$nulls":4},"FishEye",{"$nulls":5},"up to 12",null,null,"1 of 10TB Max","IN- 16+IPC Out- 1+IPC","IN- 16+IPC Out- 8+IPC"]
[null,null,"Doorbell",null,null,"Wireless","DDA- Object Counting (area)",{"$nulls":18},"2*Ethernet",{"$nulls":5},"up to 16"]
[{"$nulls":5},"Color at night","Item monitoring",{"$nulls":18},"Basic Analytic",{"$nulls":5},"up to 64"]
[{"$nulls":5},"Red/Blue Strobe Light","Heat Map",{"$nulls":18},"LPR"]
[{"$nulls":5},"Check Point Protect","Face Detection ",{"$nulls":18},"Check Point Protect"]
[{"$nulls":5},"Wigand","Face Recognition"]
[{"$nulls":5},"Wi-Fi","LPR"]
[{"$nulls":6},"Active Deterrence"]
[{"$nulls":6},"Fire Detection"]
[{"$nulls":6},"Temperture alert"]
[{"$nulls":6},"Check Point Protect"]

{"sheet":"Sheet1","index":13,"n_rows":15,"n_cols":3,"rows_kept":15}
[]
[null,"Items duties"]
[null,"Cameras",0]
[null,"DVR",0]
[null,"NVR",0]
[null,"Power supply",0]
[null,"Monitor",0.14]
[null,"Lens",0]
[null,"Connectors",0]
[null,"UTP Baluns"]
[null,"HOUSING AND BRACKETS",0.027]
[null,"HDMI",0]
[null,"HDD"]
[null,"server",0]
[null,"PoE",0]